Workbook

Sheet letter

Sheet Overview
A1: STATE OF CONNECTICUT
A2: OFFICE OF THE COMPTROLLER
A4: GAAP CLOSING PACKAGE
A7: This file contains worksheet-forms to be used by all agencies of the State of Connecticut to facilitate the
A8: annual publication of the annual comprehensive financial report (ACFR) using generally accepted
A9: accounting principles (GAAP) as required by federal law. These forms include the following;
B10: The Pkg | D10: ACKNOWLEDGEMENT <-upon receipt of your package, please return this form immediately!
B11: The Pkg | D11: CONTROL SHEET
B12: The Pkg | D12: General Instructions
B13: Form | C13: 1. | D13: Cash in Bank
B14: Form | C14: 2. | D14: Receivables
B15: Form | C15: 3. | D15: Grant Receivables
B16: Form | C16: 4. | D16: Unearned Revenue
B17: Form | C17: 5. | D17: Contractual Obligations
B18: Form | C18: 5a. | D18: Contractual Retainages
B19: Form | C19: 7 | D19: Trustee Accounts
B20: Form | C20: 8. | D20: Other Assets
B21: Form | C21: 9. | D21: Other Liabilities
A23: ADDITIONAL FINANCIAL INFORMATION
A25: All agencies are required to report corrections to their compensated absences report using form #7.
A26: Agency personnel should check their Email from CoreCT on this subject in the month of August.
A27: Additionally, the nature of certain agency activities requires the OSC to collect "additional financial
A28: information" using GAAP form #7. If you find your agency listed below, you may use the
A29: worksheets/tabs, in this file, specifically designed for reporting your agency's various "additional
A30: financial information."
B32: Tab color &
B33: Hyperlink | D33: Agency Name
B34: DAS | D34: Department of Administrative Services, Revolving Fund
B35: DAG | D35: Department of Agriculture
B36: DCS | D36: Department of Construction Services
B37: DOC | D37: Department of Corrections, Revolving Fund
B38: DDS | D38: Department of Developmental Services
B39: SDE | D39: Department of Education
B40: DPS | D40: Department of Emergency Services and Public Protection
B41: DECD | D41: Department of Economic and Community Development
B42: DEEP | D42: Department of Energy and Environmental Protection
B43: DHE | D43: Department of Higher Education
B44: ITD | D44: Department of Information Technology, Revolving Fund
B45: DOL | D45: Department of Labor
B46: DMV | D46: Department of Motor Vehicles
B47: DPH | D47: Department of Public Health
B48: DRS | D48: Department of Revenue Services
B49: DSS | D49: Department of Social Services
B50: DOT | D50: Department of Transportation
B51: IRM | D51: Insurance Risk Management
B52: JUD | D52: Judicial Branch
B53: OLM | D53: Office of Legislative Management
B54: OPM | D54: Office of Policy Management
B55: PCA | D55: Probate Court Administration
B56: TRB | D56: Teachers' Retirement Board
B57: TEC | D57: CT Technical High School System
A86: FINANCIAL STATEMENTS ONLY - no GAAP closing package required
A88: Finally, there are a few organizations whose audited financial statements are used for the CAFR. GAAP closing
A89: package requests are not used for these organizations because the statements provide sufficient information
A90: for CAFR integration. These organizations include;
B91: The Clean Water Fund
B92: The Drinking Water Fund

Sheet Acknow
A1: STATE OF CONNECTICUT
A2: OFFICE OF THE COMPTROLLER
A3: GAAP CLOSING PACKAGE
A5: ACKNOWLEDGEMENT
A7: I have received the GAAP closing package for the fiscal year ending June 30, 2023. I have also verified
A8: that the closing package includes the following (check appropriate box):
I10: Not
H11: Included | I11: Included
A12: General Instructions
A13: GAAP Forms Control Sheet
A14: GAAP Instructions and Forms 1-9
A15: Additional Financial Information (only required from certain agencies)
B20: Department:
B22: Signature and Title:
B23: Date:
A27: Please e-mail this acknowledgement as soon as you receive the GAAP closing package to:
A29: Email as an attachment to: | F29: OSC.ACFRReporting@ct.gov

Sheet Gen_Instr
E2: STATE OF CONNECTICUT
E3: OFFICE OF THE COMPTROLLER
E4: GAAP CLOSING PACKAGE
E6: GENERAL INSTRUCTIONS
A9: Please read the following instructions before completing any forms.
A11: 1. Please ascertain that your closing package has all the forms listed on the enclosed “GAAP
A12: Forms Control Sheet”.
A14: Note: You can access these forms at: | E14: http://www.osc.ct.gov/agencies/forms/index.html
A15: Click on the hyperlink to access the GAAP form instructions (PDF format), and the GAAP
A16: forms (Excel format), and GAAP additional information (Excel format), if applicable to
A17: your agency.
A19: 2. You should read the instructions for each form before completing it.
A21: 3. These forms apply to every fund (e.g. General, Transportation, etc.) which your agency is
A22: accountable for. However, GAAP forms No.’s 2‑6, 8 and 9 do not apply to the trustee
A23: accounts or Clean Water and Drinking Water funds.
A25: 4. If you require additional space on any form, please make as many copies as required. Please do not add aditional lines.
A27: 5. Each completed form listed on the control sheet should be signed by the person responsible for completing it, and by the
A28: person responsible for reviewing it (preferably the chief financial officer).
A30: 6. The attached GAAP Forms Control Sheet must be completed and emailed along with the
A31: completed form(s) and other financial information (if applicable to your agency).
A33: Note: Email and attach the completed forms in Excel format. A PDF version will no longer be accepted for all completed forms.
A34: Submit in PDF format one completed control sheet to: OSC.ACFRReporting@ct.gov
A36: 7. You should retain the original of your completed closing package and keep it with your permanent
A37: records along with all pertinent information which was used to support your work. Your closing
A38: package will be subject to review by auditors so it is very important that you are able to justify
A39: your responses, especially if you had to work with estimates.
A41: 8. You should make sure that the account coding information required in these forms is filled out
A42: completely and accurately.
A44: 9. If you are missing any GAAP forms or have any questions about them, please feel free to
A45: contact Rebecca Salerni on teams or rebecca.salerni@ct.gov.

Sheet Control_Sheet
G1: STATE OF CONNECTICUT
G2: OFFICE OF THE COMPTROLLER
G3: GAAP FORMS CONTROLS SHEET
G6: Form Not | H6: Form | I6: Form | J6: Form | K6: E-mail if | L6: Phone #
G7: Applicable | H7: Completed | I7: Prepared By | J7: Reviewed By | K7: Questions | L7: Questions
B8: 1. Cash in Bank
B9: 2. Receivables
B10: 3. Grant Receivables
B11: 4. Unearned Revenue
B12: 5. Contractual Obligations
B13: 5a. Contractual Retainages
B14: 7. Trustee Accounts, - Assets & Liabilities
B15: 8. Other Assets
B16: 9. Other Liabilities
A18: Instructions
A19: 1. For each GAAP form listed above, check the appropriate box to indicate whether the form was completed or found to be not applicable by your agency.
A20: Also provide the signature of the provider, reviewer of each form along with their contact information if there are questions.
A22: 2. Email and attach this form along with the completed GAAP form(s) or any other financial information (if applicable to your agency).
A23: Submit a copy of this form(for the signed PDF version), by September 1, to the OSC/GAAP reporting unit as follows;
E25: Email and attach the completed GAAP forms to: | F25: OSC.ACFRReporting@ct.gov
A27: The Auditors of Public Accounts require all Agencies to Email the GAAP forms as attachments using Excel format.
A28: Sign one completed control sheet form (for the signed PDF versions) to the OSC/GAAP reporting unit.
B31: Agency/Department :

Sheet F1_Instr
E1: STATE OF CONNECTICUT
E2: OFFICE OF THE COMPTROLLER
E3: GAAP REPORTING FORM
E4: CASH IN BANK
J6: GAAP Form No. 1
E8: Instructions
A10: For purposes of this form, "cash in bank" is defined as bank accounts which are in the custody of
A11: your agency and are not reported in CORE-CT as of June 30th. For example, checking accounts,
A12: certificates of deposit, etc.
A14: This form does not apply to petty cash or STIF accounts.
A16: If your agency does not have any bank accounts to report, please check “form not applicable” on
A17: GAAP Forms Control Sheet.
A19: If your agency has any such bank accounts, please complete columns 1-7 of GAAP Form No. 1 as
A20: follows:
A22: 1. | B22: Enter required account coding information for each bank account.
B23: Note: Do not complete this column for bank accounts held by your agency as a
B24: trustee for money owned others. (e.g. money management/client funds).
A26: 2. | B26: Enter the type of bank account (e.g. savings, checking, certificates of deposit, etc.).
B27: Note: If your agency has more than one account in the bank, list them by account type.
B28: Do not list each account individually.
A30: 3. | B30: Enter the name of the bank in which the account(s) is (are) kept.
A32: 4. | B32: Indicate the purpose or use of the account(s).
A34: 5. | B34: Enter the balance of the account(s) as reported in your records as of June 30th.
A36: 6. | B36: Enter the balance of the account(s) as reported by the bank as of June 30th.
A38: 7. | B38: Enter the amount of the bank balance (column 6) that is insured by the Federal Depository
B39: Insurance Corporation (FDIC) as of June 30th.
B41: Notes:
B43: a. The FDIC insures up to $250,000 of bank deposits held in either non-interest-bearing
B44: accounts or interest-bearing accounts.
E47: (continued)
A50: GAAP Form No. 1 | E50: Page 2
B53: b. For each bank, the amount of deposits that is insured by the FDIC would be as follows:
B55: 1) | C55: For non-interest-bearing accounts enter the total amount of deposits or $250,000,
C56: whichever is lower.
A58: and/or
B60: 2) | C60: For interest-bearing accounts, enter the total amount of deposits or $250,000,
C61: whichever is lower.
B63: c. Please compare last years' amount to the current year amount to review the variance. If the variance is greater or less than five percent and five million dollars
B64: provide a brief explanation for the changes on the following form.

Sheet Form 1 Cash in Bank
A1: State of Connecticut | J1: GAAP Form No. 1
A2: Office of the Comptroller
A3: GAAP Reporting Form - Cash in Bank | E3: Variance Explanation:
A4: For the Fiscal Year Ended June 30, 2023
A6: Note: Round to whole numbers. | G6: Total | H6: =SUM(H11:H28) -> 0 | I6: =SUM(I11:I28) -> 0 | J6: =SUM(J11:J28) -> 0
A7: 1 | E7: 2 | F7: 3 | G7: 4 | H7: 5 | I7: 6 | J7: 7
D8: Revenue/ | E8: Type of
A9: Fund | B9: Department | C9: SID | D9: Expenditure | E9: Bank | F9: Name of | G9: Account | H9: Book | I9: Bank | J9: Insured
A10: # | B10: # | C10: # | D10: Account# | E10: Account | F10: Bank | G10: Purpose/Use | H10: Balance | I10: Balance | J10: Balance
I31: Reminder
I32: This form is due on September 1, 2023.
I33: When completed, return it with the
I34: GAAP Forms Control Sheet.

Sheet F2_Instr
E1: STATE OF CONNECTICUT
E2: OFFICE OF THE COMPTROLLER
E3: GAAP REPORTING FORM
E4: RECEIVABLES
H7: GAAP Form No. 2
E8: Instructions
A11: For purposes of this form, receivables are defined as amounts owed to the State by individuals, private
A12: organizations, or other governments as of June 30th for:
A14: a. Goods or services provided to individuals, private organizations, or other governments on or
A15: prior to June 30th, or
A17: b. Other claims against individuals, private organizations, or other governments which arose on or
A18: prior to June 30th.
A20: c. Interest portion of loans receivable for loans which arose on or prior to June 30th.
A22: Do not report on this form the following types of receivables:
A24: a. Grants or contributions due from the federal government or other providers
A25: (See GAAP form No. 3).
A27: b. Loans receivable (principal only).
A29: c. Fees receivable for licenses, permits, or certificates.
A31: d. Amounts due from other State agencies.
A33: e. Leases receivable.
A35: If your agency has no receivables to report or if the total amount of receivables to be reported in
A36: column 4 is less than $300,000, please check “form not applicable” on GAAP Form Control Sheet.
A38: If the total amount of receivables to be reported in column 4 is greater than or equal to $300,000,
A39: please complete columns 1-6 of GAAP Form No. 2 as follows:
A41: 1. Enter required account coding information for each receivable amount (column 4).
A43: 2. Enter a description of the receivable to be collected.
A45: 3. Enter the name of the debtor government, if applicable.
E56: (continued)
A57: GAAP Form No. 2 Page 2
A58: .
A60: 4. Enter the amount of the receivable as of June 30th.
A62: Notes:
A64: a. Include in this amount any receivables that are held for collection by the Department of
A65: Administrative Services and/or the Office of the Attorney General.
A67: b. If your agency administers federal grant programs on behalf of municipalities or other third
A68: parties and if as of June 30th there were disallowed expenditures or unexpended balances
A69: related to those programs that needed to be refunded to the federal government, report a
A70: receivable for the refund owed by the municipality or other party on this form and a liability
A71: for the portion of the refund that must be returned to the federal government on GAAP form
A72: No 9 (other liabilities).
A74: 5. Enter the amount of the receivable as of June 30th (column 4) that your agency has estimated
A75: to be uncollectible.
A77: Note: Use your best estimate. It is your responsibility to determine the quality of the
A78: receivable and, thus, the amount that may not be collectible.
A80: 6. Enter the amount of the receivable as of June 30th (column 4) that was collected by your
A81: agency on or before August 31st.
A84: Please compare last years' amount to the current year amount to review the variance. If the variance is greater or less than five percent and five million dollars
A85: provide a brief explanation for the changes on the following form.

Sheet Form 2 Receivables
A1: State of Connecticut | I1: GAAP Form No. 2
A2: Office of the Comptroller
A3: GAAP Reporting Form - Receivables | E3: Variance Explanation:
A4: ='Form 1 Cash in Bank'!A4 -> For the Fiscal Year Ended June 30, 2023
A6: Note: Round to whole numbers. | F6: Total | G6: =SUM(G12:G28) -> 0 | H6: =SUM(H12:H28) -> 0 | I6: =SUM(I12:I28) -> 0
A7: 1 | E7: 2 | F7: 3 | G7: 4 | H7: 5 | I7: 6
H8: Receivables | I8: Receivables
H9: Estimated | I9: Collected
A10: Fund | B10: Department | C10: SID | D10: Revenue | E10: Account | F10: Government | G10: Receivable | H10: to be | I10: Through
A11: # | B11: # | C11: # | D11: Account # | E11: Description | F11: Name | G11: Amount | H11: Uncollectible | I11: August 31st
H31: Reminder
H32: This form is due on September 1, 2023.
H33: When completed, return it with the
H34: GAAP Forms Control Sheet.

Sheet F3_Instr
E1: STATE OF CONNECTICUT
E2: OFFICE OF THE COMPTROLLER
E3: GAAP REPORTING FORM
E4: GRANTS RECEIVABLE
J7: GAAP Form No. 3
E9: Instructions
A11: For purposes of this form, grants receivable are defined as grant (or other financial assistance) amounts
A12: owed to the State by the federal government (provider) as of June 30th.
A14: Note: This form also applies to those rare cases in which the grant (or contribution) provider is an
A15: individual or a private organization.
A17: According to GAAP, grants receivable should be reported when all applicable eligibility requirements,
A18: including time requirements, established by the provider have been met.
A20: Eligibility requirements comprise one or more of the following (as applicable):
A22: a. Required characteristics of recipients - The recipient (and secondary recipient, if applicable)
A23: has the characteristics specified by the provider. For example, under a certain federal program,
A24: recipients are required to be states and secondary recipients are required to be school districts.
A26: b. Time requirements - The period specified by the provider when grant resources must be spent
A27: by the State.
A29: c. Reimbursements - The provider stipulates that the State cannot qualify for resources without
A30: first incurring allowable expenditures under the provider’s program.
A32: d. Contingencies - The provider’s offer of resources is contingent upon a specified action of the
A33: State. For example, the State is required to spend its own resources for a specified purpose
A34: (matching requirement).
A36: Note: Contingencies should not be confused with purpose restrictions. Purpose restrictions specify
A37: the purpose or purposes for which the grant resources are required to be used. For example, a
A38: requirement that grant resources be used for street and road repairs is a purpose restriction, not a
A39: contingency.
A41: Do not report on this form grant amounts due from other state agencies.
E51: (continued)
A53: GAAP Form No. 3 | C53: Page 2
A55: If your agency has no grants receivable to report or if the total amount of grants receivable to be reported
A56: in column 4 is less than $300,000, please check “form not applicable” on the GAAP Form Control
A57: Sheet.
A59: If the total amount of grants receivable to be reported in column 4 is greater than or equal to $300,000,
A60: please complete columns 1-6 of GAAP Form No. 3 as follows:
A62: 1. Enter required account coding information for each grant receivable amount (column 4).
A64: 2. Enter a description of the grant receivable to be collected.
A66: 3. Enter the name of the grant provider.
A68: 4. Enter the amount of the grant receivable as of June 30th.
A70: Notes:
A72: a. If you are reporting reimbursement-type grants and if all eligibility requirements established
A73: by the provider have been met, enter the amount of allowable expenditures incurred under the
A74: grant program through June 30th which had not been reimbursed by the provider as of that date.
A76: b. If you are reporting other than reimbursement-type grants and if all eligibility requirements
A77: established by the provider have been met, enter the full grant award, less any payments
A78: received from the provider through June 30th (include payments received in prior fiscal
A79: years, if reporting on multi-year grants).
A81: · A multi-year grant is one whose award is required to be spent in more than one fiscal year.
A83: · Grants receivable should be reported even if the State might not have completed as of year end
A84: routine reports required by the provider (e.g., filing of a progress report or filing of a quarterly
A85: reimbursement report).
A87: 5. Enter the amount of the grant receivable as of June 30th (column 4) that your agency has
A88: estimated to be uncollectible, if any.
A90: Note: Use your best estimate. It is your responsibility to determine the quality of the receivable and,
A91: thus, the amount that may not be collectible.
A93: 6. Enter the amount of the grant receivable as of June 30th (column 4) that your agency expects
A94: to collect on or before June 30, of the Next Fiscal Year.
A97: Please compare last years' amount to the current year amount to review the variance. If the variance is greater or less than five percent and five million dollars
A98: provide a brief explanation for the changes on the following form.

Sheet Form 3 Grants Receivable
A1: State of Connecticut | I1: GAAP Form No. 3
A2: Office of the Comptroller
A3: GAAP Reporting Form - Grants Receivable | E3: Variance Explanation:
A4: ='Form 1 Cash in Bank'!A4 -> For the Fiscal Year Ended June 30, 2023
A6: Note: Round to whole numbers. | F6: Total | G6: =SUM(G12:G28) -> 0 | H6: =SUM(H12:H28) -> 0 | I6: =SUM(I12:I28) -> 0
A7: 1 | E7: 2 | F7: 3 | G7: 4 | H7: 5 | I7: 6
H8: Grants Receivable | I8: Grants Receivable
H9: Estimated | I9: Expected to be
A10: Fund | B10: Department | C10: SID | D10: Revenue | E10: Grant | F10: Grant | G10: Grant | H10: to be | I10: Collected Through
A11: # | B11: # | C11: # | D11: Account # | E11: Description | F11: Provider | G11: Receivables | H11: Uncollectible | I11: June 30th of the Next Fiscal Year
H30: Reminder
H31: This form is due on September 1, 2023.
H32: When completed, return it with the
H33: GAAP Forms Control Sheet.

Sheet F4_instr
A1: STATE OF CONNECTICUT
A2: OFFICE OF THE COMPTROLLER
A3: GAAP REPORTING FORM
A4: UNEARNED REVENUE
A8: GAAP Form No. 4
A10: Instructions
A12: For purposes of this form, unearned revenue is defined as cash collected by the State from individuals or
A13: private organizations on or prior to June 30th for goods or services to be provided after June 30th. Unearned
A14: revenue results from cash receipts in advance of the time period when the resources are permitted to be used
A15: as defined by enabling legislation such as insurance, banking and other industry regulatory assessments to be used
A16: the following fiscal year to fund state regulatory examinations/evaluations.
A18: Do not report on this form fees collected in advance for licenses, permits, or certificates.
A20: If your agency has no unearned revenue to report or if the total amount of deferred revenues to be
A21: reported in column 3 is less than $300,000, please check “form not applicable” on the GAAP Form Control Sheet.
A23: If the total amount of unearned revenues to be reported in column 3 is greater than or equal to $300,000,
A24: please complete columns 1-3 of GAAP Form No. 4 as follows:
A26: 1. Enter required account coding information for each unearned revenue amount (column 3).
A28: 2. Enter a description of the unearned revenue.
A30: 3. Enter the amount of the unearned revenue as of June 30th.
A32: Please compare last years' amount to the current year amount to review the variance. If the variance is greater or less than five percent and five million dollars
A33: provide a brief explanation for the changes on the following form.

Sheet Form 4 Def Rev
A1: State of Connecticut | G1: GAAP Form No. 4
A2: Office of the Comptroller
A3: GAAP Reporting Form - Unearned Revenue | E3: Variance Explanation:
A4: ='Form 1 Cash in Bank'!A4 -> For the Fiscal Year Ended June 30, 2023
A6: Note: Round to whole numbers. | F6: Total | G6: =SUM(G12:G27) -> 0
A7: 1 | E7: 2 | G7: 3
A10: Fund | B10: Department | C10: SID | D10: Revenue
A11: # | B11: # | C11: # | D11: Account # | E11: Account Description | G11: Amount
F29: Reminder
F30: This form is due on September 1, 2023.
F31: When completed, return it with the
F32: GAAP Forms Control Sheet.

Sheet F5_Instr
A1: STATE OF CONNECTICUT
A2: OFFICE OF THE COMPTROLLER
A3: GAAP REPORTING FORM
A4: CONTRACTUAL OBLIGATIONS
A7: GAAP Form No. 5
A8: Instructions
A10: For purposes of this form, contractual obligations are defined as the unspent balances of contracts outstanding
A11: as of June 30th that the State is obligated to spend in the future.
A13: Note: For reporting purposes, contractual obligations are not considered to be a liability of the State.
A14: Instead they are a required note disclosure in the financial statements.
A16: This form applies to any contract with an original contract life greater than one year outstanding as of June
A17: 30th that has an obligation amount greater than or equal to $300,000 (see instruction No. 2 below)
A19: Notes:
A20: a. Do not report in this form the following types of contracts: leases, or contracts for which the contract
A21: amount cannot be determined or reasonably estimated. For example, open-ended or conditional
A22: price agreements.
A24: b. For Statewide contracts, each agency participating in the contract should report its share of the contract
A25: in this form, as applicable.
A27: If your agency does not have any contracts to report, please check “form not applicable” on the GAAP Forms
A28: Control Sheet.
A30: If your agency has any contracts that meet the above requirements, please complete columns 1 and 2 of GAAP
A31: Form No. 5 as described below.
A33: 1. Enter a description of the contract(s).
A35: 2 Enter the amount of the contractual obligation of the State as of June 30th. This amount is calculated as follows:
A37: Contract Amount
A38: minus payments made on the contract through June 30th,
A39: minus invoices owed on the contract as of June 30th,
A40: minus amounts retained on the contract through June 30th, if any
A41: equals the Contractual Obligation
A43: Notes:
A44: a. The contract amount should include any contract revisions that were in effect on June 30th.
A45: b. If the contract amount can not be determined or reasonably estimated, no contractual obligation
A46: amount would be reported on this form.
A47: c. Invoices owed on the contract as of June 30th should be only for goods or services received on
A48: or prior to June 30th.
A50: Please compare last years' amount to the current year amount to review the variance. If the variance is greater or less than five percent and five million dollars
A51: provide a brief explanation for the changes on the following form.

Sheet Form 5 Contract Commitments
A1: State of Connecticut | C1: GAAP Form No. 5
A2: Office of the Comptroller
A3: GAAP Reporting Form - Contractual Obligations | B3: Variance Explanation:
A4: ='Form 1 Cash in Bank'!A4 -> For the Fiscal Year Ended June 30, 2023
A6: Note: Round to whole numbers. | B6: Total | C6: =SUM(C12:C24) -> 0
A7: 1 | C7: 2
C10: Obligation
A11: Contract Description | C11: Amount
C27: Reminder
C28: This form is due on September 1, 2023.
C29: When completed, return it with the
C30: GAAP Forms Control Sheet.

Sheet F5aInstr
B1: STATE OF CONNECTICUT
B2: OFFICE OF THE COMPTROLLER
B3: GAAP REPORTING FORM
B4: CONTRACTUAL RETAINAGES
B7: GAAP Form No. 5a
B8: Instructions
B10: For purposes of this form, contractual retainages are defined as amounts owed by the State as of June 30th on
B11: outstanding contracts for which a stated percentage of the contract price has not been paid, pending final
B12: inspection or the lapse of a specified time period, or both.
B14: This form applies to any contract outstanding as of June 30th that has a retainage amount greater than or
B15: equal to $300,000.
B17: If your agency does not have any contracts to report, please check “form not applicable” on the GAAP Forms
B18: Control Sheet.
B20: If your agency has any contracts that meet the above requirements, please complete columns 1-5 of GAAP Form
B21: No. 5a as described below.
B23: 1. Enter required account coding information for each contractual retainage amount (column 3).
B25: 2. Enter a description of the contract(s).
B27: 3. Enter the amount of the contractual retainage owed by the State as of June 30th.
B29: 4. Enter the amount of the retainage as of June 30th (column 3) that was paid by your agency on or
B30: before August 31st.
B32: Note: For payments to be included in this column, supporting invoices must have receipt dates of
B33: June or prior months.
B35: 5. Indicate whether or not the contract is funded by a Federal grant.
A37: Please compare last years' amount to the current year amount to review the variance. If the variance is greater or less than five percent and five million dollars
A38: provide a brief explanation for the changes on the following form.

Sheet Form 5a Retainage
A1: State of Connecticut | H1: GAAP Form No. 5a
A2: Office of the Comptroller
A3: GAAP Reporting Form - Contractual Retainages | E3: Variance Explanation:
A4: ='Form 1 Cash in Bank'!A4 -> For the Fiscal Year Ended June 30, 2023
A6: ='Form 1 Cash in Bank'!A6 -> Note: Round to whole numbers. | E6: Total | F6: =SUM(F12:F28) -> 0 | G6: =SUM(G12:G28) -> 0
A7: 1 | E7: 2 | F7: 3 | G7: 4 | H7: 5
G8: Retainages | H8: Contract Funded
G9: Paid | H9: by Federal
A10: Fund | B10: Department | C10: SID | D10: Expenditure | F10: Retainage | G10: Through | H10: Grant ?
A11: # | B11: # | C11: # | D11: Account # | E11: Contract Description | F11: Amount | G11: August 31st | H11: Yes/No
G30: Reminder
G31: This form is due on September 1, 2023.
G32: When completed, return it with the
G33: GAAP Forms Control Sheet.

Sheet Form 7 Instr
A1: STATE OF CONNECTICUT
A2: OFFICE OF THE COMPTROLLER
A3: GAAP REPORTING FORM
A4: TRUSTEE ACCOUNTS
A6: GAAP Form No. 7
A9: Instructions
A12: For purposes of this form, trustee accounts are any account operated in any state educational institution or welfare
A13: or medical agency for the benefit of the employees or students of such institution or agency, including clients' funds
A14: in state hospitals, the revenue of which is derived from the operation of canteens, vending machines, dramatics,
A15: recitals, student activity fees, membership fees, deposits, gifts, donations, bequests, or any other legal source compatible
A16: with the government of such institution or agency.
A18: This form applies to any assets and liabilities that need to be reported for trustee accounts.
A20: Note: If your agency has cash balances included on the State's general ledger at year end please do not include those
A21: balances on this form. Also, exclude any STIF balances from this form.
A23: If your agency does not have any trustee accounts to report, please check "form not applicable" on the GAAP Forms
A24: Control Sheet.
A26: If your agency has any trustee accounts, please complete columns 1-3 of GAAP Form No. 7a as described below.
A28: 1. Enter required account coding only for trustee accounts which are provided by the State. The account coding that
A29: is required for FUND and SID should be from where the resources were originally provided (i.e. the general fund)
A31: 2. Enter dollar amount provided by State funds.
A33: 3. Enter dollar amount provided by Third Party funds.
A35: Please compare last years' amount to the current year amount to review the variance. If the variance is greater or less than five percent and five million dollars
A36: provide a brief explanation for the changes on the following form.

Sheet Form 7 Trustee
A1: State of Connecticut | G1: GAAP Form No. 7
A2: Office of the Comptroller
A3: GAAP Reporting Form - Non-Core accounts with Agency as Trustee | F3: Variance Explanation:
A4: ='Form 1 Cash in Bank'!A4 -> For the Fiscal Year Ended June 30, 2023
A6: ='Form 1 Cash in Bank'!A6 -> Note: Round to whole numbers. | E6: Net Position | F6: =SUM(F11:F12)+SUM(F20:F24) -> 0 | G6: =SUM(G13:G24) -> 0
A7: 1 | F7: 2 | G7: 3
E8: Revenue/ | F8: State | G8: Third Party
A9: Account | B9: Fund | C9: Department | D9: SID | E9: Expenditure | F9: Provided | G9: Provided
A10: Name | B10: # | C10: # | D10: # | E10: Account # | F10: Funds | G10: Funds
A11: Cash-activity | G11: x
A12: Cash-residents | G12: x
A13: Cash-clients | B13: x | C13: x | D13: x | E13: x | F13: x
A14: Cash-rep payee | B14: x | C14: x | D14: x | E14: x | F14: x
A15: Cash-money mkt | B15: x | C15: x | D15: x | E15: x | F15: x
A16: Cash-donation | B16: x | C16: x | D16: x | E16: x | F16: x
A17: Cash-escrow | B17: x | C17: x | D17: x | E17: x | F17: x
A18: Cash-savings | B18: x | C18: x | D18: x | E18: x | F18: x
A19: Cash-trust | B19: x | C19: x | D19: x | E19: x | F19: x
A20: Cash-other
A21: Receivables | B21: x | C21: x | D21: x | E21: x
A22: Other Assets | B22: x | C22: x | D22: x | E22: x
A23: Liabilities | B23: x | C23: x | D23: x | E23: x
A25: exclude-stif | B25: x | C25: x | D25: x | E25: x | F25: x | G25: x
G27: Reminder
G28: This form is due on September 1, 2023.
G29: When completed, return it with the
G30: GAAP Forms Control Sheet.

Sheet F8_Instr
A1: STATE OF CONNECTICUT
A2: OFFICE OF THE COMPTROLLER
A3: GAAP REPORTING FORM
A4: OTHER ASSETS
A7: GAAP Form No. 8
A9: Instructions
A12: For purposes of this form, other assets are defined as any assets that your agency might have had as of
A13: June 30th and that were not reported in the other GAAP forms or additional information.
A15: This form does not apply to fixed assets (such as equipment or supplies).
A17: If your agency does not have other assets to report or if the total amount of other assets to be reported in
A18: column 3 is less than $300,000, please check “form not applicable” on GAAP Form Control Sheet.
A20: If the total amount of other assets to be reported in column 3 is greater than or equal to $300,000,
A21: please complete columns 1-3 of GAAP Form No. 8 as follows:
A23: 1. Enter required account coding information for each asset amount (column 3).
A25: 2. Enter a description of the asset.
A27: 3. Enter the amount of the asset as of June 30th.
A29: Please compare last years' amount to the current year amount to review the variance. If the variance is greater or less than five percent and five million dollars
A30: provide a brief explanation for the changes on the following form.

Sheet Form 8 Oth Assets
A1: State of Connecticut | F1: GAAP Form No. 8
A2: Office of the Comptroller
A3: GAAP Reporting Form - Other Assets | E3: Variance Explanation:
A4: ='Form 1 Cash in Bank'!A4 -> For the Fiscal Year Ended June 30, 2023
A6: ='Form 1 Cash in Bank'!A6 -> Note: Round to whole numbers. | E6: Total | F6: =SUM(F11:F27) -> 0
A7: 1 | E7: 2 | F7: 3
A9: Fund | B9: Department | C9: SID | D9: Revenue | E9: Asset
A10: # | B10: # | C10: # | D10: Account # | E10: Description | F10: Amount
F30: Reminder
F31: This form is due on September 1, 2023.
F32: When completed, return it with the
F33: GAAP Forms Control Sheet.

Sheet F9_Instr
A1: STATE OF CONNECTICUT
A2: OFFICE OF THE COMPTROLLER
A3: GAAP REPORTING FORM
A4: OTHER LIABILITIES
A7: GAAP Form No. 9
A9: Instructions
A11: For purposes of this form, other liabilities are defined as any liabilities that your agency might have had as of
A12: June 30th and that were not reported in the other GAAP forms or additional information (ex. Leases should be excluded).
A14: Do not report on this form unpaid vendor invoices as of June 30th which were paid on or before August 30th
A15: through Core-CT, having receipt dates of June or prior months.
A17: If your agency does not have other liabilities to report or if the total amount of other liabilities to be reported
A18: in column 3 is less than $300,000, please check “form not applicable” on GAAP Form Control Sheet.
A20: If the total amount of other liabilities to be reported in column 3 is greater than or equal to $300,000, please
A21: complete columns 1-4 of GAAP Form No. 9 as follows:
A23: 1. Enter required account coding information for each liability amount (column 3).
A25: 2. Enter a description of the liability.
A27: 3. Enter the amount of the liability as of June 30th.
A29: 4. Enter the amount of the liability as of June 30th (column 3) that was paid by your agency on or before
A30: August 31st.
A32: Note: For payments to be reported in this column, supporting invoices must have receipt dates of June or
A33: prior months.
A35: Please compare last years' amount to the current year amount to review the variance. If the variance is greater or less than five percent and five million dollars
A36: provide a brief explanation for the changes on the following form.

Sheet Form 9 Oth Liabilities
A1: State of Connecticut | H1: GAAP Form No. 9
A2: Office of the Comptroller
A3: GAAP Reporting Form - Other Liabilities | D3: Variance Explanation:
A4: ='Form 1 Cash in Bank'!A4 -> For the Fiscal Year Ended June 30, 2023
A6: ='Form 1 Cash in Bank'!A6 -> Note: Round to whole numbers. | F6: Total | G6: =SUM(G11:G29) -> 0 | H6: =SUM(H11:H29) -> 0
A7: 1 | F7: 2 | G7: 3 | H7: 4
H8: Liability paid
A9: Fund | B9: Department | C9: SID | D9: Expenditure | E9: Account | F9: Liability Description | G9: Amount | H9: through
A10: # | B10: # | C10: # | D10: # | H10: August 31st
G31: Reminder
G32: This form is due on September 1, 2023.
G33: When completed, return it with the
G34: GAAP Forms Control Sheet.

Sheet Additional_info
A1: STATE OF CONNECTICUT
A2: OFFICE OF THE COMPTROLLER
A3: GAAP CLOSING PACKAGE
A4: ADDITIONAL FINANCIAL INFORMATION
A6: All agencies are required to report corrections to their compensated absences report using form #7.
A7: Agency personnel should check their Email from CoreCT on this subject in the month of August.
A8: Due to the nature of their activities, the OSC requires specific State agencies to provide "additional
A9: financial information" using GAAP form #7. If you find your agency listed below, you may use the
A10: worksheets/tabs, in this file, specifically designed for reporting your agency's various "additional
A11: financial information."
B12: Tab color &
B13: Hyperlink | D13: Agency Name
B14: DAS | D14: Department of Administrative Services, Revolving Fund
B15: DAG | D15: Department of Agriculture
B16: DCS | D16: Department of Construction Services
B17: DOC | D17: Department of Corrections, Revolving Fund
B18: DDS | D18: Department of Developmental Services
B19: SDE | D19: Department of Education
B20: DESPP | D20: Department of Emergency Services and Public Protection
B21: DECD | D21: Department of Economic and Community Development
B22: DEEP | D22: Department of Energy and Environmental Protection
B23: DHE | D23: Department of Higher Education
B24: ITD | D24: Department of Information Technology, Revolving fund
B25: DOL | D25: Department of Labor
B26: DMV | D26: Department of Motor Vehicles
B27: DPH | D27: Department of Public Health
B28: DRS | D28: Department of Revenue Services
B29: DSS | D29: Department of Social Services
B30: DOT | D30: Department of Transportation
B31: IRM | D31: Insurance Risk Management
B32: JUD | D32: Judicial Branch
B33: OLM | D33: Office of Legislative Management
B34: OPM | D34: Office of Policy Management
B35: PCA | D35: Probate Court Administration
B36: TRB | D36: Teachers' Retirement Board
B37: TEC | D37: CT Technical High School System

Sheet DAS_Instr
A1: STATE OF CONNECTICUT
A2: OFFICE OF THE COMPTROLLER
A3: GAAP CLOSING PACKAGE
A5: DEPARTMENT OF ADMINISTRATIVE SERVICES
A6: ADDITIONAL FINANCIAL INFORMATION
A9: The information requested below is in addition to the information requested through the GAAP closing
A10: package. This information is due on September 1st. When completed return it with the GAAP
A11: Forms Control Sheet.
A13: 1. Provide the following financial statements for the General Services Revolving Fund (22003)
A14: as of June 30th.
A16: a. Statement of Fund Equity.
A17: b. Statement of Revenues, Expenses, and Changes in Fund Equity.
A18: c. Statement of Cash Flows.
A20: 2. Complete attached schedule on analysis of Changes in Capital Assets of the General Services
A21: Revolving Fund.
A23: 3. Complete attached analysis of receivables.
A25: 4. Complete attached analysis of equity balance.
A27: 5. Complete attached schedule for School Contruction Grants

Sheet DAS_CHG_CAPASST
A1: STATE OF CONNECTICUT
A2: OFFICE OF THE STATE COMPTROLLER
A3: GAAP CLOSING PACKAGE
A5: DEPARTMENT OF ADMINISTRATIVE SERVICES
A7: ADDITIONAL FINANCIAL INFORMATION
A9: Analysis of Changes in Capital Assets
A10: General Services Revolving Fund
A11: 2023-06-30
B13: Balance | H13: Balance
B14: 2022-06-30 | D14: Additions | F14: Deletions | H14: 2023-06-30
A15: Land | B15: 0 | D15: $ | F15: $ | H15: $
A16: Buildings | B16: 62280
A17: Machinery and Equipment | B17: 148090949.2
A19: Less Accumulated Depreciation for:
A20: Buildings | B20: 62280
A21: Machinery and Equipment | B21: 104804045.5
A23: Total Capital Assets, Net | B23: 43286903.61 | D23: $ | F23: $ | H23: $

Sheet DAS_Due_frm
A1: STATE OF CONNECTICUT
A2: OFFICE OF THE COMPTROLLER
A3: GAAP CLOSING PACKAGE
A5: DEPARTMENT OF ADMINISTRATIVE SERVICES
A7: ADDITIONAL FINANCIAL INFORMATION
A9: Analysis of Receivables
A10: General Services Revolving Fund
A11: 2023-06-30
A14: General Services
A15: Revolving fund
B17: State agencies
B19: Nonstate customers
B21: Total receivables | C21: $
A37: Instructions
A38: 1. Enter the portion of receivables that is owed by Sate agencies and the
A39: portion that is owed by nonstate customers, if any.
A40: 2. Total receivable should agree with amount reported in financial statements.

Sheet DAS_Equity
A1: STATE OF CONNECTICUT
A2: OFFICE OF THE STATE COMPTROLLER
A3: GAAP CLOSING PACKAGE
A5: DEPARTMENT OF ADMINISTRATIVE SERVICES
A7: ADDITIONAL FINANCIAL INFORMATION
A9: Analysis of Changes in Equity Balance
A10: General Services Revolving Fund
A11: 2023-06-30
A16: Equity Balance, 6-30-2022 | B16: 33418218.42
A17: 2023 Income (Loss)
A18: Adjustments (Note a) (Describe)
A22: Equity Balances, 6-30-2023 | B22: $
A32: Notes
A33: a. Fund equity should be adjusted only to correct errors reported in
A34: financial statements of prior fiscal years.
A35: b. Equity balance at 6-30-2023 should agree with the amount reported on
A36: the balance sheet.

Sheet DAS_School
A1: STATE OF CONNECTICUT
A2: OFFICE OF THE STATE COMPTROLLER
A3: GAAP CLOSING PACKAGE
A5: DEPARTMENT OF ADMINISTRATIVE SERVICES
A7: ADDITIONAL FINANCIAL INFORMATION
A9: School Construction Grant Payments
A11: 2023-06-30
A17: Progress Payments pursuant to C.G.S. 10-287i
A32: Notes
A33: a. Fund equity should be adjusted only to correct errors reported in
A34: financial statements of prior fiscal years.
A35: b. Equity balance at 6-30-2023 should agree with the amount reported on
A36: the balance sheet.

Sheet DAG_Instr
A11: The information requested below is in addition to the information requested through the GAAP
A12: closing package. This information is due on September 1st. When completed, return it
A13: with the GAAP Forms Control Sheet.
A16: 1. | B16: Complete the attached schedule on operating indicators.

Sheet DAG_OI
D8: Operating Indicators Schedule
A12: Operating Indicator | I12: 2022
A14: Number of CT farmers participating in the farmers' market
A29: Instructions: For the operating indicators listed above, enter applicable information for fiscal year 2022.
A31: Note: Operating indicators represent information about the types of services your agency provides;
A32: they should indicate the demand for or the volume of your agency's services.

Sheet DOC_Instr
A1: STATE OF CONNECTICUT
A2: OFFICE OF THE STATE COMPTROLLER
A3: GAAP CLOSING PACKAGE
A5: DEPARTMENT OF CORRECTIONS
A7: ADDITIONAL FINANCIAL INFORMATION
A10: The information requested below is in addition to the information requested through the GAAP
A11: closing package. This information is due on September 1st. When completed, return it
A12: with the GAAP Forms Control Sheet.
A15: 1. | B15: Provide the following financial statements for the Correctional Industries and Commissary
B16: Funds as of June 30th.
B17: a. | C17: Statement of Fund Equity.
B18: b. | C18: Statement of Revenues, Expenses, and Changes in Fund Equity.
B19: c. | C19: Statement of Cash Flows.
A21: 2. | B21: Complete attached schedule on analysis of changes in capital assets of the Correctional
B22: Industries and Commissary Funds.
A24: 3. | B24: Complete attached analysis of receivables.
A26: 4. | B26: Complete attached analysis of equity balance.
A28: 5. | B28: Complete attached schedule on operating indicators.

Sheet DOC_cf_assts
A1: STATE OF CONNECTICUT
A2: OFFICE OF THE STATE COMPTROLLER
A3: GAAP CLOSING PACKAGE
A5: DEPARTMENT OF CORRECTIONS
A7: ADDITIONAL FINANCIAL INFORMATION
A9: Analysis of Changes in Capital Assets
A10: Commissary Fund
A11: 2023-06-30
B13: Balance | H13: Balance
B14: 2022-06-30 | D14: Additions | F14: Deletions | H14: 2023-06-30
A15: Machinery and Equipment | B15: 5876969.48 | D15: $ | F15: $ | H15: $
A17: Less Accumulated Depreciation for:
A18: Machinery and Equipment | B18: 5305199.69
A20: Total Capital Assets, Net | B20: 571770 | D20: $ | F20: $ | H20: $

Sheet DOC_ci_assts
A1: STATE OF CONNECTICUT
A2: OFFICE OF THE STATE COMPTROLLER
A3: GAAP CLOSING PACKAGE
A5: DEPARTMENT OF CORRECTIONS
A7: ADDITIONAL FINANCIAL INFORMATION
A9: Analysis of Changes in Capital Assets
A10: Correctional Industries Fund
A11: 2023-06-30
B13: Balance | H13: Balance
B14: 2022-06-30 | D14: Additions | F14: Deletions | H14: 2023-06-30
A15: Machinery and Equipment | B15: 7231394.33 | D15: $ | F15: $ | H15: $
A17: Less Accumulated Depreciation for:
A18: Machinery and Equipment | B18: 7181364
A20: Total Capital Assets, Net | B20: 50030.33 | D20: $ | F20: $ | H20: $

Sheet DOC_AR
A1: STATE OF CONNECTICUT
A2: OFFICE OF THE COMPTROLLER
A3: GAAP CLOSING PACKAGE
A5: DEPARTMENT OF CORRECTIONS
A7: ADDITIONAL FINANCIAL INFORMATION
A9: Analysis of Receivables
A10: Correctional Industries and Commissary Funds
A11: 2023-06-30
B14: Correctional | D14: Commissary
B15: Industries fund | D15: fund
A18: State agencies
A20: Nonstate customers
A24: Total receivables | B24: $ | D24: $
A30: Instructions
A31: 1. Enter the portion of receivables that is owed by Sate agencies and the
A32: portion that is owed by nonstate customers, if any.
A34: 2. Total receivable should agree with amount reported in financial statements.

Sheet DOC_eqty
A1: STATE OF CONNECTICUT
A2: OFFICE OF THE COMPTROLLER
A3: GAAP CLOSING PACKAGE
A5: DEPARTMENT OF CORRECTIONS
A7: ADDITIONAL FINANCIAL INFORMATION
A9: Analysis of Changes in Equity Balance
A10: Correctional Industries and Commissary Funds
A11: 2023-06-30
B14: Correctional | D14: Commissary
B15: Industries fund | D15: fund
A17: Equity Balance, 6-30-22 | B17: 10418577 | D17: 6916213.85
A18: 2023 Income (Loss)
A19: Adjustments (Note a) (Describe):
A24: Equity Balance, 6-30-23 | B24: $ | D24: $
A30: Notes:
A31: a. Fund equity should be adjusted only to correct errors reported in financial statements of
A32: prior fiscal years.
A34: b. Equity balance at 6-30-23 should agree with the amount reported on the balance sheet.

Sheet DOC_OI
A1: STATE OF CONNECTICUT
A2: OFFICE OF THE COMPTROLLER
A3: GAAP CLOSING PACKAGE
A5: DEPARTMENT OF CORRECTIONS
A8: Operating Indicators Schedule
A12: Operating Indicator | I12: 2022
A14: Number of inmates incarcerated
A16: Amount of daily inmate expenditures
A29: Instructions: For the operating indicators listed above, enter applicable information for fiscal year 2022.
A31: Note: Operating indicators represent information about the types of services your agency provides;
A32: they should indicate the demand for or the volume of your agency's services.

Sheet DDS_Instr
A1: STATE OF CONNECTICUT
A2: OFFICE OF THE COMPTROLLER
A3: GAAP CLOSING PACKAGE
A5: DEPARTMENT OF DEVELOPMENTAL SERVICES
A7: ADDITIONAL FINANCIAL INFORMATION
A10: The information requested below is in addition to the information requested through the GAAP
A11: closing package. This information is due on September 1st. When completed, return it with
A12: the GAAP Forms Control Sheet.
A16: 1. | B16: Complete the attached schedule on operating indicators.

Sheet DDS_OI
A1: STATE OF CONNECTICUT
A2: OFFICE OF THE COMPTROLLER
A3: GAAP CLOSING PACKAGE
A5: DEPARTMENT OF DEVELOPMENTAL SERVICES
A8: Operating Indicators Schedule
A11: Operating Indicator | I11: 2022
A13: Number of qualified providers
A15: Number of individuals served ( all programs)
A21: Instructions:
A22: For the operating indicators listed above, enter applicable information for fiscal year 2022.
A24: Note:
A25: Operating indicators represent information about the types of services your agency provides; they
A26: should indicate the demand for or the volume of your agency's services.

Sheet SDE_Instr
A1: STATE OF CONNECTICUT
A2: OFFICE OF THE COMPTROLLER
A3: GAAP CLOSING PACKAGE
A5: DEPARTMENT OF EDUCATION
A7: ADDITIONAL FINANCIAL INFORMATION
A10: The information requested below is in addition to the information requested through
A11: the GAAP Closing Package. This information is due on September 1st. When
A12: completed return it with the GAAP Forms Control Sheet.
A15: 1. | B15: Complete the attached schedule on accrued teacher salaries.

Sheet SDE_sal
A1: STATE OF CONNECTICUT
A2: OFFICE OF COMPTROLLER
A3: GAAP CLOSING PACKAGE
A5: DEPARTMENT OF EDUCATION
A7: Accrued Teacher Salaries
A8: 2023-06-30
A10: The Department of Education employs teachers who work only during the school year (September
A11: June) and who are paid over a 12-month period. Accordingly, salaries paid to these teachers in
A12: July and August for work performed during the prior school year represent a liability of the State
A13: as of June 30th.
A15: Instructions:
A16: 1. Enter total amount of teacher gross salaries for the following payroll period ending dates.
A17: 1) | B17: June 29 (paid on July 14)
A19: 2) | B19: July 13 (paid on July 28)
A21: 3) | B21: July 27 (paid on August 11)
A23: 4) | B23: August 10 (paid on August 25)
A25: 2. For each payroll listed in "1", enter total amount of teacher gross salaries by fund
A26: number.
A28: 3. For General fund (11000) salaries, enter total salary amount by SID Number.

Sheet DEEP_Instr
A1: STATE OF CONNECTICUT
A2: OFFICE OF THE COMPTROLLER
A3: GAAP CLOSING PACKAGE
A5: DEPARTMENT OF ENERGY AND ENVIRONMENTAL PROTECTION
A7: ADDITIONAL FINANCIAL INFORMATION
A12: The information requested below is in addition to the information requested through the GAAP
A13: closing package. This information is due on September 1st. When completed, return it
A14: with the GAAP Forms Control Sheet.
A16: 1. | B16: Complete the attached form on the liability for pollution remediation.
A18: 2. | B18: Complete the attached schedule on assets of the Trust funds.
A20: 3. | B20: Complete the attached schedule on operating indicators.

Sheet DEEP_OI
A1: STATE OF CONNECTICUT
A2: OFFICE OF THE COMPTROLLER
A3: GAAP CLOSING PACKAGE
A5: DEPARTMENT OF ENERGY AND ENVIRONMENTAL PROTECTION
A7: Operating Indicators Schedule
A10: Operating Indicator | C10: 2022
A12: Average annual tons of nitrogen discharged to long island sound.
A14: Percentage of attainment of acquiring 320,957 acres of State dedicated open space.
A21: Instructions: For the operating indicators listed above, enter applicable information for
A22: fiscal year 2022.
A24: Note: Operating indicators represent information about the types of services your agency
A25: provides; they should indicate the demand for or the volume of your agency's services.

Sheet DEEP_landfill
A1: STATE OF CONNECTICUT
A2: OFFICE OF THE COMPTROLLER
A3: GAAP CLOSING PACKAGE
A5: DEPARTMENT OF ENVIRONMENTAL PROTECTION
A7: Landfill Closure and Postclosure Care
A10: GASB Statement No.18, Accounting for Municipal Solid Waste Landfill Closure and Postclosure Care
A11: Cost, applies to closure and postclosure care costs that are paid near or after the date a landfill stops
A12: accepting waste. The State recognizes landfill expenditures and related general fund liabilities using
A13: the modified accrual basis of accounting. DEEP estimates the State’s landfill liability for closure and
A14: postclosure costs based on landfill capacity.
A16: Increases or decreases in such estimates are reported as additions or reductions in this line item of
A17: the State’s long-term liabilities. The liability for these estimated costs is reduced when the costs are
A18: actually paid. Actual costs may be higher than estimated due to inflation or changes in permitted
A19: capacity, technology or regulation.
A21: Public Act 13-247 and section 99 of Public Act 13-184 required the Materials Innovation and Recycling
A22: Authority (formally known as the Connecticut Resources Recovery Authority) to transfer both $31.0
A23: million of its reserves to the resources of the General Fund, and the related post closure obligations,
A24: Totaling $35.8 million, resulting from the closure of the authority's landfills located in Hartford, Ellington,
A25: Waterbury, Wallingford and Shelton to the State Department of Energy and Environmental Protection
A26: (DEEP). | B26: Please update the balances of the following landfill obligations as of June 30, 2023.
B27: DEEP | C27: as of | F27: as of
B28: Landfill | C28: FYE | D28: FY23 | E28: FY23 | F28: FYE
B29: Liability | C29: 2022 | D29: Increases | E29: Decreases | F29: 2023
B30: Ellington | C30: 1282034.02
B31: Hartford | C31: 12831932.71
B32: Shelton | C32: 6986703.69
B33: Wallingford | C33: 5690531.25
B34: Waterbury | C34: 976467.08
B35: Total Obligations | C35: 27767668.75
A37: Instructions:
A38: Please explain any decreases other than obligations actually paid.
A39: Please explain any increases including updates for engineering estimates performed during the fiscal year.
H43: Ellington | I43: Hartford | J43: Shelton | K43: Wallingford | L43: Waterbury | M43: Total
G44: Table6 Closure and Post closure Care liability-prior Auditor workpapers | H44: 3299963 | I44: 30607751 | J44: 10128583 | K44: 4297720 | L44: 942071 | M44: 49276088
G45: Closure liability paid by Mira before finalized transfer to State | H45: 0 | I45: -11919000 | J45: 0 | K45: 0 | L45: 0 | M45: -11919000
G46: Postclosure Liability transferred to State/DEEP per Audit 2013 | H46: 3299963 | I46: 18688750 | J46: 10128583 | K46: 4297720 | L46: 942072 | M46: 37357088
G47: FY 2014 increases | H47: 0 | I47: 0 | J47: 0 | K47: 0 | L47: 0 | M47: 0
G48: FY 2014 decreases | H48: -186682 | I48: -907631 | J48: -350291 | K48: -137154 | L48: -24543 | M48: -1606301
G49: balance of Liability transferred to DEEP per Audit 2014 | H49: 3113281 | I49: 17781119 | J49: 9778292 | K49: 4160566 | L49: 917529 | M49: 35750787 | O49: Transfer of obligations $35.8 M
G50: Auidit adjustment FYE2015 | H50: =-131416-281 -> -131697 | I50: =-130388+881 -> -129507 | J50: =-240532-292 -> -240824 | K50: =-61956+434 -> -61522 | L50: =-1592-529 -> -2121 | M50: =-565884+213 -> -565671
G51: Beginning Balance FY2016 | H51: 2981584 | I51: 17651612 | J51: 9537468 | K51: 4099044 | L51: 915408 | M51: 35185116
G52: FY 2016 increases | H52: 344869 | I52: 0 | J52: 439774 | K52: 2196800 | L52: 275821 | M52: 3257264
G53: FY 2016 decreases | H53: -144511 | I53: -8454118 | J53: -281452 | K53: -45757 | L53: -11110 | M53: -8936948
G54: DEEP reported ending balance FY2016 | H54: 3181942 | I54: 9197494 | J54: 9695790 | K54: 6250087 | L54: 1180119 | M54: 29505432
G55: DEEP error focusing on cash rather than obligation (APA required) | H55: 0 | I55: 8008265 | J55: 0 | K55: 0 | L55: 0 | M55: 8008265
G56: CAFR Ending Balance FY2016 | H56: 3181942 | I56: 17205759 | J56: 9695790 | K56: 6250087 | L56: 1180119 | M56: 37513697
G57: FY 2017 increases | H57: 0 | I57: 0 | J57: 0 | K57: 0 | L57: 0 | M57: 0
G58: FY 2017 decreases | H58: -136019 | I58: =-694703 -> -694703 | J58: -265825 | K58: =-83385 -> -83385 | L58: -36814 | M58: -1216746
G59: CAFR Ending Balance FY2017 | H59: 3045923 | I59: 16511056 | J59: 9429965 | K59: 6166702 | L59: 1143305 | M59: 36296951
G60: FY 2018 increases
G61: FY 2018 decreases | H61: -336878.32 | I61: -425831.63 | J61: -341358.59 | K61: -109313.75 | L61: -18924.51 | M61: -1232306.8
G62: CAFR Ending Balance FY2018 | H62: =H59+H60+H61 -> 2709044.68 | I62: =I59+I60+I61 -> 16085224.37 | J62: 9088606.41 | K62: 6057388.25 | L62: 1124380.49 | M62: 35064644.2
G63: FY 2019 increases | H63: 0 | I63: 0 | J63: 0 | K63: 0 | L63: 0 | M63: =SUM(H63:L63) -> 0
G64: FY 2019 decreases | H64: -695343 | I64: -485225 | J64: -245142 | K64: -82263 | L64: -21372 | M64: =SUM(H64:L64) -> -1529345
G65: CAFR Ending Balance FY2019 | H65: =SUM(H62:H64) -> 2013701.68 | I65: =SUM(I62:I64) -> 15599999.37 | J65: 8843464.41 | K65: 5975125.25 | L65: 1103008.49 | M65: 33535299.2
G66: FY 2020 increases | H66: 0 | I66: 0 | J66: 0 | K66: 0 | L66: 0 | M66: =SUM(H66:L66) -> 0
G67: FY 2020 decreases | H67: -238474 | I67: -754538 | J67: -377844 | K67: -48893 | L67: -12589 | M67: =SUM(H67:L67) -> -1432338
G68: CAFR Ending Balance FY2020 | H68: =SUM(H65:H67) -> 1775227.68 | I68: =SUM(I65:I67) -> 14845461.37 | J68: 8465620.41 | K68: 5926232.25 | L68: 1090419.49 | M68: =SUM(M65:M67)+1 -> 32102962.2
F69: FY 2021 increases | H69: 0 | I69: 0 | J69: 0 | K69: 0 | L69: 0 | M69: =SUM(H69:L69) -> 0
F70: FY 2021 decreases | H70: -457448.99 | I70: -1010684.99 | J70: -822437.83 | K70: -159773.76 | L70: -65449.83 | M70: =SUM(H70:L70) -> -2515795.4
F71: CAFR Ending Balance FY2021 | H71: =SUM(H68:H70) -> 1317778.69 | I71: =SUM(I68:I70) -> 13834776.38 | J71: =SUM(J68:J70) -> 7643182.58 | K71: 5766458.49 | L71: 1024969.66 | M71: 29587166.8
F72: FY 2022 increases | H72: 0 | I72: 0 | J72: 0 | K72: 0 | L72: 0 | M72: 0
F73: FY 2022 decreases | H73: -35744.99 | I73: -1002843.3 | J73: -656478.48 | K73: -75927.99 | L73: -48502.09 | M73: -1819496.85
F74: CAFR Ending Balance FY2022 | H74: =SUM(H71:H73) -> 1282033.7 | I74: =SUM(I71:I73) -> 12831933.08 | J74: 6986704.1 | K74: 5690530.5 | L74: 976467.57 | M74: =SUM(M71:M73)-1 -> 27767668.95
F75: FY 2023 increases
F76: FY 2023 decreases

Sheet DEEP_Rem
A1: STATE OF CONNECTICUT
A2: OFFICE OF THE COMPTROLLER
A3: GAAP CLOSING PAKAGE
A5: DEPARTMENT OF ENERGY AND ENVIRONMENTAL PROTECTION
A7: Liability for Pollution Remediation
A8: 2023-06-30
A11: Governmental Accounting Standards Board Statement No. 49, "Accounting and Financial Reporting for
A12: Pollution Remediation Obligations" requires the State to report a liability for its obligation to address the
A13: current or potential detrimental effects of existing pollution by participating in pollution remediation activities.
A14: For example, obligations to clean up spills of hazardous wastes or hazardous substances are pollution
A15: remediation obligations.
A17: The State's obligation relates to payments made in the performance of some of the following pollution
A18: remediation activities:
A20: a. | C20: Pre-cleanup activities, such as the performance of a site assessment, site investigation, and corrective
C21: measures feasibility study, and the design of a remediation plan.
A22: b. | C22: Cleanup activities, such as neutralization, containment, or removal and disposal of pollutants, and site
C23: restoration.
A24: c. | C24: Federal government oversight and enforcement-related activities, such as work performed by an
C25: environmental regulatory authority dealing with the site and chargeable to the State.
A26: d. | C26: Operation and maintenance of the remedy, including required monitoring of the remediation effort.
A28: State's payments for pollution control or prevention, fines, penalties, toxic torts, etc. are not considered to be
A29: related to pollution remediation activities.
A31: The State should report a liability for pollution remediation if any of the following events occurs:
A33: a. | B33: The State faces a situation of imminent endangerment that leaves it little or no choice but to remediate.
A34: b. | B34: The State is in violation of a pollution-related permit or license.
A35: c. | B35: The State has been named (or there is evidence that it will be named) by a regulator as a responsible
B36: party or as a potential responsible party for remediation, or as a party responsible for sharing costs.
A37: d. | B37: The State is the object of a lawsuit (or there is evidence that it will be the object of a lawsuit) compelling
B38: costs remediation.
A39: e. | B39: The State voluntarily commences or obligates itself to commence remediation.
F46: (1)
A48: However, the State would not be required to report the liability unless it is measurable (reasonably
A49: estimable). According to Statement No. 49, the liability can be estimated based on a range of future
A50: payments.
A52: To help us comply with the requirements of Statement No. 49, please complete items 1-4.
A54: 1. | B54: Did any of the events that would require the State to report a liability for pollution remediation occur
B55: during the fiscal year?
C56: Yes _____ The State should report a liability if it is measurable. Go to item 2.
C58: No______ The State would not report a liability. Go to item 4.
A60: 2. | B60: Does your agency have the information needed to estimate the amount of the liability for pollution
B61: remediation as of June 30th?
C62: Yes____ Go to item 3.
C64: No____ The State will not report the liability until it is measurable.
A66: 3. | B66: Provide an estimate of the liability for pollution remediation as of June 30, if amount of liability for
B67: each polluted site is greater than or equal to $1,000,000. The estimate should be based on a
B68: range of future payments, adjusted by the relative chance (probability) of occurrence of different amounts
B69: within the range.
J70: Estimated
C71: Range of future payments | F71: Probability | J71: liability
C72: Highest payment-$ | F72: % | J72: $
C74: Lowest payment-$ | F74: % | J74: $
H75: Total | J75: $
B76: Notes:
B77: a. | C77: The estimated liability would be calculated by multiplying the amounts within the range times the
C78: probability of their occurrence and totaling those amounts.
B79: b. | C79: If the amount of the liability is based on a contractual amount, provide such amount, instead.
B80: c. | C80: If the probability of occurrence for amounts within the range can not be determined, assign equal
C81: probability of occurrence to amounts within the range.
B82: d. | C82: If an amount within the range is considered to be a better estimate than the others, consider such
C83: amount in the calculation of the liability.
B84: e. | C84: Provide an analysis of the liability calculation for each site (current or prior year).
B85: f. | C85: Estimated recovery amount expected to be collected after fiscal year 2023 should be reported as
C86: a reduction of the liability (see item No. 5).
F89: (2)
A93: 4. | B93: Provide an analysis of changes in the pollution remediation liabilities reported in current and prior
B94: fiscal years as of June 30.
D95: Balance | J95: Balance
D96: 2022-06-30 | F96: Additions | H96: Deletions | J96: 2023-06-30
C97: Newhall (Outside CO Boundary) | D97: 1482169.84 | F97: 0 | H97: 0 | J97: 0
C98: Stratford | D98: 1546282.84 | E98: 0 | F98: 0 | G98: 0 | H98: 0 | I98: 0 | J98: 0
C99: Durham | D99: 8291346.54 | E99: 0 | F99: 0 | G99: 0 | H99: 0 | I99: 0 | J99: 0
C100: Tylerville | D100: 2004871.66 | F100: 0 | G100: 0 | H100: 0 | I100: 0 | J100: 0
C101: Yaworski - landfill | D101: 5028537.46 | F101: 0 | G101: 0 | H101: 0 | I101: 0 | J101: 0
C102: Yaworski - lagoons | D102: 6463673.46 | F102: 0 | G102: 0 | H102: 0 | I102: 0 | J102: 0
C103: Broad Brook mill | D103: 1350000 | F103: 0 | G103: 0 | H103: 0 | I103: 0 | J103: 0
C105: Total | D105: 26166881.8 | E105: 0 | F105: 0 | G105: 0 | H105: 0 | I105: 0 | J105: 0
B108: a. | C108: Has your agency received or discovered new information that it might require
C109: that the prior-year liability estimates should be adjusted? If answer is yes, report the new estimates
C110: (see item 3) and report adjustments under the additions or deletions column as appropriate. .
B112: b. | C112: Were pollution remediation payments made for these sites during fiscal year
C113: 2023? If answer is yes, report the amount of such payments under the deletions column.
B115: c. | C115: Estimated recovery amounts expected to be collected after fiscal year 2023 should be reported as a
C116: reduction (deletions column) of the related liability (see item No. 5).
A118: 5. | B118: As of June 30, if the State can recover a portion of its estimated pollution remediation costs
B119: from other parties (insurance companies or potential responsible parties), provide the following
B120: information:
B121: a. | C121: An estimate of the recovery amount(s) as of June 30, if measurable,
C123: Note: If the estimate is based on a range of future receipts, use the method described in item
C124: No. 3 to calculate the amount of the estimated recovery.
B126: b. | C126: Estimated recovery amount that is expected to be collected in fiscal year 2023, if any: | I126: $_____________
C129: Note: Estimated recovery amount expected to be collected after fiscal year 2023 should be
C130: reported as a reduction of the related liability.
F133: (3)

Sheet DEEP_Trusts
A1: STATE OF CONNECTICUT
A2: OFFICE OF THE COMPTROLLER
A3: GAAP CLOSING PACKAGE
A5: DEPARTMENT OF ENERGY AND ENVIRONMENTAL PROTECTION
A7: ADDITIONAL FINANCIAL INFORMATION
A9: Trust Funds' Assets
A11: 2023-06-30
B15: ASSETS
A16: Cash | B16: $
A17: Investments
A18: Other(describe):
A21: Total | B21: $
A36: Instructions
A37: 1. Provide required information for the following funds: Topsmead Trust Fund, White Memorial
A38: Fund, White Memorial Foundation, and White Memorial Foundation Accumulated Income
A39: Fund.
A40: 2. Use of GAAP form No. 8 is permitted.
A41: 3. Report Investments at Fair value.

Sheet DHE_Instr
A2: STATE OF CONNECTICUT
A3: OFFICE OF THE COMPTROLLER
A4: GAAP CLOSING PACKAGE
A6: Financial and Academic Affairs for Higher Education
A8: ADDITIONAL FINANCIAL INFORMATION
A11: The information requested below is in addition to the information requested through the GAAP
A12: closing package. This information is due on September 1st. When completed, return it
A13: with the GAAP Forms Control Sheet.
A16: 1. | B16: Complete the attached schedule on operating indicators.

Sheet DHE_OI
A1: STATE OF CONNECTICUT
A2: OFFICE OF THE COMPTROLLER
A3: GAAP CLOSING PACKAGE
A5: Financial and Academic Affairs for Higher Education
A8: Operating Indicators Schedule
A10: Operating Indicator | D10: 2022
A12: Number of degrees/certificates conferred - total statewide
A14: Number of students enrolled - total statewide
A19: Instructions:
A20: For the operating indicators listed above, enter applicable information for fiscal year 2022.
A22: Notes:
A23: Operating indicators represent information about the types of services your agency
A24: provides; they should indicate the demand for or the volume of your agency's services.

Sheet ITD_Instr
A1: STATE OF CONNECTICUT
A2: OFFICE OF THE COMPTROLLER
A3: GAAP CLOSING PACKAGE
A5: DEPARTMENT OF INFORMATION TECHNOLOGY
A7: ADDITIONAL FINANCIAL INFORMATION
A9: The information requested below is in addition to the information requested through the GAAP
A10: closing package. This information is due on September 1st. When completed, return it with
A11: the GAAP Forms Control Sheet.
A14: 1. | B14: Provide the following financial statements for the Technical Services Revolving Fund
B15: (22002) as of June 30th.
B16: a. | C16: Statement of Fund Equity.
B17: b. | C17: Statement of Revenues, Expenses, and Changes in Fund Equity.
B18: c. | C18: Statement of Cash Flows.
A20: 2. | B20: Complete the attached analysis of receivables.
A22: 3. | B22: Complete attached analysis of equity balance.

Sheet ITD_AR
A1: STATE OF CONNECTICUT
A2: OFFICE OF THE STATE COMPTROLLER
A3: GAAP CLOSING PACKAGE
A5: DEPARTMENT OF INFORMATION TECHNOLOGY
A7: ADDITIONAL FINANCIAL INFORMATION
A9: Analysis of Receivables
A10: 2023-06-30
D13: Technical Services
D14: Revolving fund
A16: State agencies
A18: Nonstate customers
A20: Total receivables | D20: $
A30: Instructions
A31: 1. Enter the portion of receivables that is owed by State agencies and the
A32: portion that is owed by nonstate customers, if any.
A33: 2. Total receivable should agree with amount reported in financial statements.

Sheet ITD_FB
A1: STATE OF CONNECTICUT
A2: OFFICE OF THE COMPTROLLER
A3: GAAP CLOSING PACKAGE
A5: DEPARTMENT OF INFORMATION TECHNOLOGY
A6: ADDITIONAL FINANCIAL INFORMATION
A8: Analysis of Changes in Equity Balance
A10: Technical Services Revolving Fund
A11: 2023-06-30
A15: Equity Balance, 6-30-22 | B15: 4790258.48
A16: 2023 Income (Loss)
A17: Adjustments (note a) (Describe):
A22: Equity Balance, 6-30-23 | B22: $
A30: Notes:
A31: a. Fund equity should be adjusted only to correct errors reported in
A32: financial statements of prior fiscal years.
A34: b. Equity balance at 6-30-23 should agree with the amount reported on
A35: the balance sheet.

Sheet DOL_Instr
A1: STATE OF CONNECTICUT
A2: OFFICE OF THE COMPTROLLER
A3: GAAP CLOSING PACKAGE
A5: LABOR DEPARTMENT-EMPLOYMENT SECURITY DIVISION
A7: ADDITIONAL FINANCIAL INFORMATION
A10: The information requested below is in addition to the information requested through the GAAP
A11: closing package. This information is due on September 1st. When completed, return it with
A12: the GAAP Forms Control Sheet.
A14: 1. | B14: Submit a copy of the "Statement of Unemployment Compensation Fund Balances
B15: per General Ledger" as of June 30th.
A17: 2. | B17: Complete the attached schedule of receivables for the Unemployment Compensation
B18: Fund as of June 30th.
A20: 3. | B20: Complete the attached analysis of the Unemployment Compensation benefit bank
B21: account.
A23: 4. | B23: Complete the attached schedule on operating indicators.

Sheet DOL_AR
A1: STATE OF CONNECTICUT
A2: OFFICE OF THE COMPTROLLER
A3: GAAP CLOSING PACKAGE
A5: LABOR DEPARTMENT - EMPLOYMENT SECURITY DIVISION
A7: Receivables
A8: 2023-06-30
A10: 1. Receivables - Billing Employers
B11: Account | E11: Amount
B12: State of Connecticut | D12: $
B13: Municipal Governments
B14: Non-Profit Organizations
B15: Balance - 6/30/23 | D15: $
A17: 2. Receivables - Uncollectible
E18: %
B19: Account | E19: Uncollectible
B20: Billing Employers:
B21: State of Connecticut
B22: Municipal Governments
B23: Non-Profit Organizations
B24: Combine Wage Billing
B25: Employer Contributions
B26: Claimant Benefit Overpayments (UI)
B27: Employer Penalty and Interest
B28: Employer Late Fees
B29: Bond Assessment
A31: Note:
A32: Report percentage of receivable amount that is estimated to be uncollectible as of June 30th.

Sheet DOL_OI
A1: STATE OF CONNECTICUT
A2: OFFICE OF THE COMPTROLLER
A3: GAAP CLOSING PACKAGE
A5: LABOR DEPARTMENT-EMPLOYMENT SECURITY DIVISION
A7: Operating Indicators Schedule
A10: Operating Indicator | I10: 2022
A12: Number of initial unemployment claims
A14: Number of persons registered for employment services
A23: Instructions:
A24: For the operating indicators listed above, enter applicable information for fiscal year 2022.
A26: Note:
A27: Operating indicators represent information about the types of services your agency provides;
A28: they should indicate the demand for or the volume of your agency's services.

Sheet DOL_ACCT
A1: STATE OF CONNECTICUT
A2: OFFICE OF THE COMPTROLLER
A3: GAAP CLOSING PACKAGE
A5: LABOR DEPARTMENT - EMPLOYMENT SECURITY DIVISION
A7: Unemployment Compensation Benefit Bank Account
A8: 2023-06-30
A12: Book balance 6-30-22 (as reported on GAAP form #1)
B13: Deposits:
C14: Drawdowns from U.S. Treasury Trust Fund
C16: TRA advances from Federal Government
C18: Combined wage billing reimbursements
C20: Other (describe):
B26: Withdrawals:
C27: Benefit Payments
C29: Other (describe):
A39: Book Balance 6-30-23 (as reported on GAAP form #1) | D39: $

Sheet DMV_Instr
A1: STATE OF CONNECTICUT
A2: OFFICE OF THE COMPTROLLER
A3: GAAP CLOSING PACKAGE
A5: DEPARTMENT OF MOTOR VEHICLES
A7: ADDITIONAL FINANCIAL INFORMATION
A10: The information requested below is in addition to the information requested through the GAAP
A11: closing package. This information is due on September 1st. When completed, return it
A12: with the GAAP Forms Control Sheet.
A15: 1. | B15: Complete the attached schedule on operating indicators.

Sheet DMV_OI
A1: STATE OF CONNECTICUT
A2: OFFICE OF THE COMPTROLLER
A3: GAAP CLOSING PACKAGE
A5: DEPARTMENT OF MOTOR VEHICLES
A7: Operating Indicators Schedule
A10: Operating Indicator | I10: 2022
A12: Number of registered motor vehicles
A14: Number of licensed drivers
A20: Instructions:
A21: For the operating indicators listed above, enter applicable information for fiscal year 2022.
A23: Note:
A24: Operating indicators represent information about the types of services your agency provides;
A25: they should indicate the demand for or the volume of your agency's services.

Sheet DPS_Instr
A1: STATE OF CONNECTICUT
A2: OFFICE OF THE COMPTROLLER
A3: GAAP CLOSING PACKAGE
A5: DEPARTMENT OF EMERGENCY SERVICES AND PUBLIC PROTECTION
A7: ADDITIONAL FINANCIAL INFORMATION
A10: The information requested below is in addition to the information requested through the GAAP
A11: closing package. This information is due on September 1st. When completed, return it
A12: with the GAAP Forms Control Sheet.
A15: 1. Complete the attached schedule on operating indicators.
A17: 2. Complete attached grant payables form as of June 30th.

Sheet DPS_GP_instr
F1: STATE OF CONNECTICUT
F2: OFFICE OF THE COMPTROLLER
F3: GAAP CLOSING PACKAGE
F5: ADDITIONAL FINANCIAL INFORMATION
F7: GRANT PAYABLES
F8: 2023-06-30
F10: Instructions
A12: For purposes of this form, grant payables are defined as grant (or other financial assistance) amounts
A13: owed by the State (provider) to individuals, private organizations, or other governments (recipients)
A14: as of June 30th.
A16: This form applies to grant and other financial assistance programs (except loan programs) that are
A17: fully funded by State monies.
A19: According to GAAP, grant payables should be reported when all applicable eligibility
A20: requirements, including time requirements, established by the provider have been met.
A22: Eligibility requirements comprise one or more of the following (as applicable):
A24: a. Required characteristics of recipients - The recipient has the characteristics specified by the
A25: provider.
A27: b. Time requirements - The period specified by the provider when grant resources must be spent by
A28: the recipient.
A30: c. Reimbursements - The provider stipulates that the recipient cannot qualify for resources without
A31: first incurring allowable expenditures under the provider’s program.
A33: d. Contingencies - The provider’s offer of resources is contingent upon a specified action of the
A34: recipient. For example, the recipient is required to spend its own resources for a specified purpose
A35: (matching requirement).
B37: Note: Contingencies should not be confused with purpose restrictions. Purpose restrictions
B38: specify the purpose or purposes for which the grant resources are required to be used. For
B39: example, a requirement that grant resources be used for street and road repairs is a purpose
B40: restriction, not a contingency.
A42: Do not report on this form grant amounts due to other agencies.
F44: (continued)
F45: Page 2
A47: If your agency has no grant payables to report or if the total amount of grant payables to be reported
A48: in column 4 is less than $300,000, please write “not applicable” on the form.
A50: If the total amount of grant payables to be reported in column 4 is greater than or equal to
A51: $300,000, please complete columns 1-5 of the form as follows:
A53: 1. Enter required account coding information for each grant payable amount (column 4).
A55: 2. Enter a description of the grant payable owed by the State.
A57: 3. Enter the name of the grant recipient.
A59: 4. Enter the amount of the grant payable as of June 30th.
A61: Notes:
B63: a. If you are reporting reimbursement-type grants and if all eligibility requirements
B64: established by the State have been met, enter the amount of allowable expenditures
B65: incurred by the recipient under the grant program through June 30th which had not been
B66: reimbursed by the State as of that date.
B68: b. If you are reporting other than reimbursement-type grants and if all eligibility
B69: requirements established by the State have been met, enter the full grant award, less
B70: any payments made by the State to the grant recipient through June 30th (include
B71: payments made in prior fiscal years, if reporting on multi-year grants).
A73: · If the grant program is funded by an annual appropriation of a budgeted fund
A74: (e.g., General Fund), enter the amount of the annual adjusted appropriation less
A75: any payments made by the State to the grant recipient through June 30th, and
A76: less any lapsed appropriation amount.
A78: · A multi-year grant is one whose award is required to be spent in more than one fiscal year.
A80: · Grant payables should be reported even if the recipient might not have completed as of year end
A81: routine reports required by the State (e.g., filing of a progress report or filing of a quarterly
A82: reimbursement report).
A84: 5. Enter the amount of the grant payable as of June 30th (column 4) that was paid on or before
A85: August 31, 2023 through Core-CT, if any.
A87: Note: For payments to be reported in this column, supporting invoices must have receipt
A88: dates of June or prior months.

Sheet DPS_OI
A1: STATE OF CONNECTICUT
A2: OFFICE OF THE COMPTROLLER
A3: GAAP CLOSING PACKAGE
A5: DEPARTMENT OF EMERGENCY SERVICES AND PUBLIC PROTECTION
A9: Operating Indicators Schedule
A12: Operating Indicator | I12: 2022
A14: Number of background checks - firearms
A16: Number of fingerprint checks for CT Police Departments
A20: Instructions:
A21: For the operating indicators listed above, enter applicable information for fiscal year 2022.
A23: Note:
A24: Operating indicators represent information about the types of services your agency provides;
A25: they should indicate the demand for or the volume of your agency's services.

Sheet DPS_GP
A1: Notes:
A2: a. Read the instructions before completing this form.
A3: b. Round off to whole numbers.
A4: State of Connecticut
A5: Office of the Comptroller
A6: Grants Payable
A7: For the Fiscal Year Ended June 30, 2023
H8: =SUM(H14:H24) -> 0
A9: 1 | E9: 2 | F9: 3 | G9: 4 | H9: 5
H11: Grants Payable
A12: Fund | B12: Department | C12: SID | D12: Expenditure | E12: Grant | F12: Grant | G12: Grants | H12: Paid Through
A13: # | B13: # | C13: # | D13: Account # | E13: Description | F13: Recipient | G13: Payable | H13: 2023-08-31
F25: Total
G27: Reminder
G28: This form is due on September 1st.
G29: When completed, return it with the
G30: GAAP Forms Control Sheet.
E36: Note: Completed forms should be e-mailed as attachments to: | F36: OSC.ACFRReporting@ct.gov

Sheet DPH_Instr
A1: STATE OF CONNECTICUT
A2: OFFICE OF THE COMPTROLLER
A3: GAAP CLOSING PACKAGE
A5: DEPARTMENT OF PUBLIC HEALTH
A7: ADDITIONAL FINANCIAL INFORMATION
A10: The information requested below is in addition to the information requested through the GAAP
A11: closing package. This information is due on September 1st. When completed, return it with
A12: the GAAP Forms Control Sheet.
A16: 1. | B16: Complete the attached schedule on operating indicators

Sheet DPH_OI
A1: STATE OF CONNECTICUT
A2: OFFICE OF THE COMPTROLLER
A3: GAAP CLOSING PACKAGE
A5: DEPARTMENT OF PUBLIC HEALTH
A9: Operating Indicators Schedule
A12: Operating Indicator | I12: 2022
A14: Number of tuberculosis (TB) cases identified
A16: Number of public health license applications - new
A18: Number of public health license applications - renewal
A22: Instructions:
A23: For the operating indicators listed above, enter applicable information for fiscal year 2021.
A25: Note:
A26: Operating indicators represent information about the types of services your agency provides;
A27: they should indicate the demand for or the volume of your agency's services.

Sheet DCS_Instr
A1: STATE OF CONNECTICUT
A2: OFFICE OF THE COMPTROLLER
A3: GAAP CLOSING PACKAGE
A5: DEPARTMENT OF CONSTRUCTION SERVICES
A7: ADDITIONAL FINANCIAL INFORMATION
A10: The information requested below is in addition to the information requested through the GAAP
A11: closing package. This information is due on September 1st. When completed, return it with
A12: the GAAP Forms Control Sheet.
A14: 1. | B14: Complete the attached schedule on construction in progress - dollar value of
B15: construction work started but not yet completed at June 30th.
A17: 2. | B17: Complete the attached schedule on operating indicators.

Sheet DCS_Cip
A1: STATE OF CONNECTICUT
A2: OFFICE OF THE COMPTROLLER
A3: GAAP CLOSING PACKAGE
A5: DEPARTMENT OF CONSTRUCTION SERVICES
A7: SCHEDULE OF CONSTRUCTION IN PROGRESS AS OF JUNE 30, 2023
A9: Construction in progress June 30, 2022 | G9: $ | H9: 147387815.6
B11: Additions: Cost of construction work incurred
B12: during the year.
C14: Other (explain):
B16: Deductions: Cost of projects completed during the year
C18: Other (explain):
A21: Construction in progress June 30, 2023 | G21: $
A23: Instructions:
A24: Report the fiscal 2023 changes to Construction-In-Progress - (Governmental funds only) by
A25: updating the above balances as of June 30, 2022 for construction activities in fiscal 2023.
A26: Please exclude construction activities pertaining to Higher Education agencies.
A28: Note: The balance that was reported by DCS as of FYE 2022 was adjusted by the Auditors of
A29: Public Accounts and accepted by the State Comptroller.

Sheet DCS_OI
A1: STATE OF CONNECTICUT
A2: OFFICE OF THE COMPTROLLER
A3: GAAP CLOSING PACKAGE
A5: DEPARTMENT OF CONSTRUCTION SERVICES
A7: Operating Indicators Schedule
A10: Operating Indicator | I10: 2022
A12: Construction contract awards
A14: State owned floor space operated by DPW
A16: Square feet of spaced leased.
A22: Instructions:
A23: For the operating indicators listed above, enter applicable information for fiscal year 2021.
A25: Note:
A26: Operating indicators represent information about the types of services your agency provides; they
A27: should indicate the demand for or the volume of your agency's services.

Sheet DRS_Trecv
A1: STATE OF CONNECTICUT
A2: OFFICE OF THE COMPTROLLER
A3: GAAP CLOSING PACKAGE
A5: DEPARTMENT OF REVENUE SERVICES
A7: Tax Receivables and Liabilities
A8: 2023-06-30
A10: Instructions
A12: According to GASB Statement No. 33, tax receivables should be recorded as follows:
A14: 1. | B14: If the tax is levied on an exchange transaction (e.g., retail sales. wages, etc.), the receivable
B15: should be recorded in the period when the exchange transaction has occurred.
A17: 2. | B17: If the tax is levied on a nonexchange transaction (e.g., transfer of property by gift or will), the
B18: receivable should be recorded in the period when an enforceable legal claim has arisen.
A20: Notes:
A22: a. | B22: In an exchange transaction, each party receives and gives essentially equal value. Conversely, in
B23: a nonexchange transaction, one party gives (or receives) value without receiving (or giving)
B24: equal value in return.
A26: b. | B26: Tax revenue should be reported net of estimated uncollectible and refunds amounts.
A28: c. | B28: Tax receivables should not be recorded if the amount of taxes is not measurable (reasonably
B29: estimable) or is not likely to be collected.
A31: For GAAP reporting purposes, tax receivables will include the following:
A33: 1. | B33: Taxes accrued at 6/30/23 according to the General Statutes (statutory accrual), as adjusted.
A35: 2. | B35: Tax receivables reported in this form.
A41: (continued)
A44: Tax receivables and liabilities (continued)
A46: Report tax receivables and liabilities as follows:
A48: 1. | B48: Enter appropriate fund number.
A50: 2. | B50: Enter tax types as follows:
B52: General Fund (11000):
C53: Personal Income - Withholding
C54: Personal Income - Estimates and Final
C55: Sales & Use
C56: Corporation
C57: Pass-through Entity Tax
C58: Public Service Corporations
C59: Cigarettes and Tobacco
C60: Health Provider
C61: Real Estate Conveyance
C62: Alcoholic Beverages
C63: Rents, Fines and Escheats
C64: Miscellaneous Taxes
B66: Transportation Fund (12001):
C67: Sales & Use
C68: Petroleum Companies
C69: Motor Fuels Tax
A71: 3. | B71: Enter tax receivable amounts at June 30th.
B73: Note: Do not report any amounts already included in the statutory accrual.
A75: 4. | B75: Enter tax receivable amounts estimated to be uncollectible at June 30th.
A77: 5. | B77: Enter tax receivable amounts (column 3) that were collected on or prior to August 31, 2023.
A79: 6. | B79: Enter amounts of tax overpayments received as of June 30th which will be credited against
B80: future taxpayers' returns (deferred tax revenue).
A82: 7. | B82: Enter amounts of tax refunds due to taxpayers at June 30th.

Sheet DRS_Instr
A1: STATE OF CONNECTICUT
A2: OFFICE OF THE COMPTROLLER
A3: GAAP CLOSING PACKAGE
A5: DEPARTMENT OF REVENUE SERVICES
A8: ADDITIONAL FINANCIAL INFORMATION
A12: The information requested below is in addition to the information requested through the GAAP closing
A13: package. This information is due on September 1. When completed, return it with the GAAP
A14: Forms Control Sheet.
A16: 1. | B16: Complete the attached form on 6-30- tax receivables and liabilities.
A18: 2. | B18: Complete the attached schedule on information needed to adjust the 6-30 statutory accrual.
A20: 3. | B20: Complete analysis of tax refunds paid by the General and Transportation funds during fiscal
B21: year 2023.
A23: 4. | B23: Complete the attached schedule of personal income tax filers and liability by income level for
B24: calendar year 2022.
A26: 5. | B26: Complete the attached schedule on operating indicators.
A28: 6. | B28: Complete the attached schedule on Tax Abatements

Sheet DRS_TrFm
A1: State of Connecticut
A2: Office of the Comptroller
A3: DRS - Tax Receivables and Liabilities
A4: For the Fiscal Year Ended June 30, 2023
A6: Note: Round to whole numbers. | D6: =SUM(D12:D26) -> 0 | E6: =SUM(E12:E26) -> 0 | F6: 0 | G6: 0 | H6: 0
C7: 2 | D7: 3 | E7: 4 | F7: 5 | G7: 6 | H7: 7
E8: Tax Receivables | F8: Tax Receivables
D9: Tax | E9: Estimated | F9: Collected | G9: Deferred | H9: Tax Refunds
A10: Fund # | D10: Receivable | E10: to be | F10: Through | G10: Tax | H10: Due To
C11: Tax Type | D11: Amounts | E11: Uncollectible | F11: 2023-08-31 | G11: Revenue | H11: Taxpayers
G28: Reminder
G29: This form is due on September 1st.
G30: When completed, return it with the
G31: GAAP Forms Control Sheet.
C37: Note: Completed forms should be e-mailed as an attachment to: | D37: OSC.ACFRReporting@ct.gov

Sheet DRS_Statu
A1: STATE OF CONNECTICUT
A2: OFFICE OF THE COMPTROLLER
A3: GAAP CLOSING PACKAGE
A5: DEPARTMENT OF REVENUE SERVICES
A7: Adjustments to the statutory accrual
A8: 2023-06-30
A11: For GAAP reporting purposes, tax receivables include taxes accrued under the statutory accrual.
A12: However, certain taxes included in the statutory accrual do not comply with the guidance found in
A13: GASB Statement No. 33. Those taxes are income tax withholding and corporation.
A15: The following information is needed to adjust the above taxes so that they are in compliance with
A16: the guidance found in GASB Statement No. 33.
A18: 1. | B18: For income tax withholding included in the 6/30/2023 statutory accrual, enter the portion of those
B19: taxes which represents taxes withheld in June or prior months.
B21: $
B23: Note: For GAAP reporting purposes, income tax withholdings should only include taxes withheld
B24: by employers in June or prior months.
A26: 2. | B26: For corporation taxes included in the 6/30/2023 statutory accrual, enter the portion of those taxes
B27: which represents quarterly payments due on June 15th or prior months and additional payments
B28: from tax return settlements.
B30: $
B32: Note: For GAAP reporting purposes, corporation taxes should only include:
B34: a. | C34: Quarterly payments which were due on June 15th or prior months.
B36: b. | C36: Additional payments from tax return settlements.

Sheet DRS_Rfds
A1: STATE OF CONNECTICUT
A2: OFFICE OF THE COMPTROLLER
A3: GAAP CLOSING PACKAGE
A5: DEPARTMENT OF REVENUE SERVICES
A7: Analysis of Tax Refunds Paid During Fiscal Year 2023
C10: General | E10: Transportation
A11: Tax Type | C11: Fund | E11: Fund
A12: Sales and Use | B12: $ | D12: $
A13: Personal Income
A14: Corporation
A15: Gasoline and Motor Fuels
A16: Other
A17: Total Tax Refunds | B17: $ | D17: $
A39: Note:
A40: Total tax refunds should agree with amounts reported in modified accrual ledger (accounts 46000's).

Sheet DRS_TLiab
A1: STATE OF CONNECTICUT
A2: OFFICE OF THE STATE COMPTROLLER
A3: GAAP CLOSING PACKAGE
A5: DEPARTMENT OF REVENUE SERVICES
A7: ADDITIONAL FINANCIAL INFORMATION
A9: Analysis of Personal Income Tax Liability
A10: For Statistical Reporting for CAFR Year Ending June 30, 2023
A15: Personal Income Tax Filers and Liability by Income Level,
A16: (Expressed in Thousands)
B17: Calendar Year 2022
D18: Personal
B19: Number | C19: Percentage | D19: Income Tax | E19: Percentage
A20: Income Level | B20: of Filers | C20: of Total | D20: Liability | E20: of Total
A21: $50,000 and under | B21: 0 | C21: 0 | D21: 0 | E21: 0
A22: $50,001 -$100,000 | B22: 0 | C22: 0 | D22: 0 | E22: 0
A23: $100,001-$200,000 | B23: 0 | C23: 0 | D23: 0 | E23: 0
A24: $200,001-$500,000 | B24: 0 | C24: 0 | D24: 0 | E24: 0
A25: $500,001-$2,000,000 | B25: 0 | C25: 0 | D25: 0 | E25: 0
A26: $2,000,000 and up | B26: 0 | C26: 0 | D26: 0 | E26: 0
A27: Total | B27: =SUM(B21:B26) -> 0 | D27: =SUM(D21:D26) -> 0
A33: NOTE: Due to confidentiality issues, the names of the ten largest taxpayers are not available.
A34: The categories presented are intended to provide alternative information regarding the sources of
A35: the State's tax revenue. Calendar year 2022 is the most recent year for which the data is available.
A36: Source: The Department of Revenue Services.

Sheet DRS_OI
A1: STATE OF CONNECTICUT
A2: OFFICE OF THE COMPTROLLER
A3: GAAP CLOSING PACKAGE
A5: DEPARTMENT OF REVENUE SERVICES
A7: Operating Indicators Schedule
A10: Operating Indicator | I10: 2022
A12: Percentage of personal income tax returns filed electronically
A14: Revenue collected per $1 of agency expense
A20: Instructions:
A21: For the operating indicators listed above, enter applicable information for fiscal year 2022.
A23: Note:
A24: Operating indicators represent information about the types of services your agency provides; they
A25: should indicate the demand for or the volume of your agency's services.

Sheet DRS_TA
A1: STATE OF CONNECTICUT
A2: OFFICE OF THE COMPTROLLER
A3: GAAP CLOSING PACKAGE
A5: DEPARTMENT OF REVENUE SERVICES
A7: ADDITIONAL FINANCIAL INFORMATION
A9: Tax Abatements
A12: Tax abatement information is due on September 1st. When completed, return it with the GAAP
A13: Forms Control Sheet having checked the box for Form #7.
A16: GASB Statement No.77 -Tax Abatement Disclosures is to provide financial statement users with essential
A17: information about the nature and magnitude of the reduction of tax revenues through tax abatement
A18: programs in order to better assess (a) whether current-year revenues were sufficient to pay for current-
A19: year service, (b) compliance with finance-related legal or contractual requirements, (c) where a
A20: government’s financial resources come from and how it uses them, and (d) financial position and
A21: condition and how they have changed over time.
A23: For purposes of GASB statement No. 77 a tax abatement is defined as a reduction in tax revenues that results
A24: from an agreement between one or more governments and an individual or entity in which (a) one or more
A25: governments promise to forgo tax revenues to which they are otherwise entitled and (b) the individual or
A26: entity promises to take a specific action after the agreement has been entered into that contributes to
A27: economic development or otherwise benefits the governments or the citizens of those governments.
A29: Please provide Tax Abatement information for the following programs:
A31: (1) | B31: (2) | D31: (3)
B32: Taxes Being Abated
A33: Tax Abatement Program | B33: as of effective date | D33: Amount of Tax Abated
A34: The CT Neighborhood Assistance Act Credit Program
A35: Corporation
A36: Cable Satellite and Video
A37: Insurance Companies
A38: Utility Companies
A39: Digital Animation
A40: Film Production
A41: Film Production Infrastructure
A42: Insurance Reinvestment
A43: Second Insurance Reinvestment
A44: Manufacturing Facility Credit
A45: Enterprise Zone For Qualifying Corporations
A46: Urban Industrial Reinvestment
A47: Historic Homes Rehabilitation
A48: Historic Structures Rehabilitation
A49: Historic Preservation
A50: Historic Rehabilitation
A51: Research Development

Sheet DSS_Instr
A1: STATE OF CONNECTICUT
A2: OFFICE OF THE COMPTROLLER
A3: GAAP CLOSING PACKAGE
A5: DEPARTMENT OF SOCIAL SERVICES
A7: ADDITIONAL FINANCIAL INFORMATION
A11: The information requested below is in addition to the information requested through the GAAP
A12: closing package. This information is due on September 1st. When completed, return it
A13: with the GAAP Forms Control Sheet.
A15: 1. | B15: Complete the attached forms on other liabilities.
A17: 2. | B17: Complete the attached form on the Supplemental Nutrition Assistance program
B18: (SNAP).
A20: 3. | B20: Provide an analysis of the benefit checking account as of June 30th.
A22: 4. | B22: Report on GAAP Form No.1, bank accounts held by vendor administering the
B23: housing subsidy programs.
A25: 5. | B25: Complete attached schedule on operating indicators.

Sheet DSS_Oliab
A1: STATE OF CONNECTICUT
A2: OFFICE OF THE COMPTROLLER
A3: GAAP CLOSING PACKAGE
A5: DEPARTMENT OF SOCIAL SERVICES
A7: Other Liabilities
A9: Instructions
A11: For purposes of these forms, other liabilities are defined as amounts owed by the State to individuals,
A12: private organizations, or to other governments at June 30th under various health and assistance
A13: programs administered by the Department of Social Services. These amounts owed by the State are
A14: for.
A16: 1. | B16: Medicaid payments due to non governmental providers at June 30th.
A18: 2. | B18: Reimbursements for General Assistance due to towns at June 30th.
A20: 3. | B20: Medicaid matching funds due to the Federal government at June 30th.
A22: 4. | B22: Portions of receivables reported in GAAP Form No. 2 which are due to the federal government
B23: at June 30th
A25: 5. | B25: Other claims due to individuals, private organizations, or to other governments at June 30th.
A27: Please list all of the above liabilities on attached forms as follows:
B29: Other Liabilities - Individuals or Private Organizations
A31: 1. | B31: Enter the required account coding information for each liability amount (column 3) and for
B32: federal grant revenue (column 5), if applicable.
A34: 2. | B34: Enter a description of the amount owed to individuals or private organizations at June 30th.
A36: 3. | B36: Enter the amount of the liability at June 30th.
A38: 4. | B38: Indicate whether or not the liability is funded by a Federal grant.
A40: 5. | B40: Enter the amount of the liability (column 3) which is reimbursable under the Federal grant.
A42: (continued)
A45: GAAP INFORMATION REQUIREMENTS (continued)
B47: Other Liabilities - Other Governments
A49: 1. | B49: Enter required account coding information for each liability amount (column 4). See Note.
A51: 2. | B51: Enter the name of the claimant government.
A53: 3. | B53: Enter a description of the amount owed to the other government at June 30th.
A55: 4. | B55: Enter the amount of the liability at June 30th.
A57: 5. | B57: Indicate whether the liability is related to a receivable reported on GAAP Form No. 2.
B61: Note:
B62: When the State is liable for a refund of Federal grant money, the refund should be reported as a
B63: liability of the fund that received the Federal grant, i.e. in most cases that fund would be the
B64: Federal Restricted Grants and Accounts fund (12060).

Sheet DSS_OLPI
A1: Notes:
A2: a. Read the instructions before completing this form.
A3: b. Round off to whole numbers.
A4: State of Connecticut
A5: Office of the Comptroller
A6: Other Liabilities - Individuals or Private Organizations
A7: Department of Social Services
A8: For the Fiscal Year Ended June 30, 2023
A10: 1 | G10: 2 | I10: 3 | J10: 4 | K10: 5
D11: Expenditure | E11: Revenue | J11: Funded by | K11: Amount
D12: Account # | E12: Account # | J12: a Federal | K12: Reimbursable
A13: Fund | B13: Department | C13: SID | D13: for liability | E13: for Federal | I13: Liability | J13: Grant | K13: under The
A14: # | B14: # | C14: # | D14: Amount | E14: Grant Amount | G14: Liability Description | I14: Amount | J14: Yes/No | K14: Federal Grant
H28: Totals
K31: Reminder
K32: This form is due on September 1, 2023.
K33: When completed, return it with the
K34: GAAP Forms Control Sheet.
F40: Note: Completed forms should be e-mailed as an attachment to: | G40: OSC.ACFRReporting@ct.gov

Sheet DSS_OLOG
A1: Notes:
A2: a. Read the instructions before completing this form.
A3: b. Round off to whole numbers.
A4: State of Connecticut
A5: Office of the Comptroller
A6: Other Liabilities - Other Governments
A7: Department of Social Services
A8: For the Fiscal Year Ended June 30, 2023
A10: 1 | E10: 2 | F10: 3 | G10: 4 | H10: 5
D11: Expenditure | H11: Liability related
D12: Account # | H12: to Receivable on
A13: Fund | B13: Department | C13: SID | D13: for liability | G13: Liability | H13: GAAP Form #2
A14: # | B14: # | C14: # | D14: Amount | E14: Government Name | F14: Liability Description | G14: Amount | H14: Yes/No
G30: Reminder
G31: This form is due on September 1st.
G32: When completed, return it with the
G33: GAAP Forms Control Sheet.
E39: Note: Completed forms should be e-mailed as an attachment to: | F39: OSC.ACFRReporting@ct.gov

Sheet DSS_Snap
A1: STATE OF CONNECTICUT
A2: OFFICE OF THE COMPTROLLER
A3: GAAP CLOSING PACKAGE
A5: DEPARTMENT OF SOCIAL SERVICES
A7: SUPPLEMENTAL NUTRITION ASSISTANCE PROGRAM (SNAP)
A8: 2023-06-30
A11: According to GASB Statement No. 24, "Accounting and Financial Reporting for Certain Grants and
A12: Other Financial Assistance," the State must make certain disclosures regarding the "Supplemental
A13: Nutrition Assistance Program" (formerly known as the food stamps program) in its annual financial
A14: report. In order for the State to make the required disclosures, please provide the following
A15: information.
A17: 1. Enter the amount (dollar value) of food benefits distributed (Note c) to recipients during the fiscal
B18: year ended June 30, 2023 under SNAP.
B20: $
A22: Notes:
A24: a. | B24: SNAP replaced the Food Stamp Program.
A26: b. | B26: This amount must be reported whether the State distributes the food benefits directly or through
B27: agents and whether the food benefits are in paper or electronic form.
A29: c. | B29: In an electronic benefit transfer system, distribution takes place when the recipients use
A30: the benefits. | B30: the benefits.

Sheet DSS_OI
A1: STATE OF CONNECTICUT
A2: OFFICE OF THE COMPTROLLER
A3: GAAP CLOSING PACKAGE
A5: DEPARTMENT OF SOCIAL SERVICES
A7: Operating Indicators Schedule
A10: Operating Indicator | I10: 2022
A12: Number of Medicaid eligible clients
A14: Temp family assistance average caseload
A16: Child care number of children served
A25: Instructions:
A26: For the operating indicators listed above, enter applicable information for fiscal year 2022.
A28: Note:
A29: Operating indicators represent information about the types of services your agency provides;
A30: they should indicate the demand for or the volume of your agency's services.

Sheet DOT_Instr
A1: STATE OF CONNECTICUT
A2: OFFICE OF THE COMPTROLLER
A3: GAAP CLOSING PACKAGE
A5: DEPARTMENT OF TRANSPORTATION
A7: ADDITIONAL FINANCIAL INFORMATION
A11: The information requested below is in addition to the information requested through the GAAP closing
A12: package. This information is due on September 1st. When completed, return it with the GAAP
A13: Forms Control Sheet.
A15: 1. | B15: Complete the attached analysis of changes in infrastructure assets for the fiscal year ended
B16: June 30th.
A18: 2. | B18: Complete the attached analysis of the changes in construction in progress for railroad cars and
B19: related building for fiscal year ended June 30th.
A21: 3. | B21: Complete the attached schedule on operating indicators.

Sheet DOT_IA
A1: STATE OF CONNECTICUT
A2: OFFICE OF THE COMPTROLLER
A3: GAAP CLOSING PACKAGE
A5: DEPARTMENT OF TRANSPORTATION
A7: ANALYSIS OF CHANGES IN INFRASTRUCTURE ASSETS
A8: FOR THE FISCAL YEAR ENDED JUNE 30, 2023
F10: Balance | L10: Balance
F11: June 30, 2022 | H11: Additions | J11: Retirements | L11: June 30, 2023
A12: Infrastructure assets not being depreciated:
A13: Rights-of-way | E13: $ | F13: 1249932690 | G13: $ | I13: $ | K13: $
A14: Construction in progress | F14: 5631755352
A15: Total infrastructure assets not being
A16: depreciated | F16: 6881688042
A17: Other infrastructure assets:
A18: Roads and bridges * | F18: 1.695330036e+10
A19: Railways and bridges | F19: 2004508510
A20: Airport landing areas
A21: Total other infrastructure assets | F21: 1.895780888e+10
A22: Less: Accumulated Depreciation for:
A23: Roads and bridges | F23: 1.200162746e+10
A24: Railways and bridges | F24: 839729062.8
A25: Airport landing areas
A26: Total accumulated depreciation | F26: 1.284135653e+10
A27: Other infrastructure assets-net | F27: 6116452349 | G27: =+G21-G26 -> 0 | I27: =+I21-I26 -> 0 | K27: =+K21-K26 -> 0
A28: Total infrastructure assets-net * | E28: $ | F28: 1.299814039e+10 | G28: $ | I28: $ | K28: $
A31: Notes:
A32: a) | B32: Construction in progress represents the cost of construction projects undertaken (e.g. roads,
B33: bridges, railroads, etc.) but not yet completed at year end.
A35: b) | B35: Construction in progress should be reduced when:
B36: 1. a project is completed and placed into service or
B37: 2. when capitalized construction expenditures on a cancelled project are written off.

Sheet DOT_CIP
A1: STATE OF CONNECTICUT
A2: OFFICE OF THE COMPTROLLER
A3: GAAP CLOSING PACKAGE
A5: DEPARTMENT OF TRANSPORTATION
A7: ANALYSIS OF CHANGES IN CONSTRUCTION IN PROGRESS-
A8: RAILROAD CARS AND BUILDING
A9: FOR THE FISCAL YEAR ENDED JUNE 30, 2023
E12: Balance | K12: Balance
E13: June 30, 2022 | G13: Additions | I13: Retirements | K13: June 30, 2023
A14: Construction in progress::
A15: Railroad cars | D15: $ | E15: 6863399.55 | F15: $ | H15: $ | J15: $
A16: Building * | E16: 372067381.2
A17: Total * | D17: $ | E17: 378930780.8 | F17: $ | G17: =SUM(G15:G16) -> 0 | H17: $ | I17: =SUM(I15:I16) -> 0 | J17: $ | K17: =SUM(K15:K16) -> 0
A21: a) | B21: Construction in progress represents the cost of construction projects undertaken but not yet
B22: completed at year end.
A24: b) | B24: Construction in progress should be reduced when:
B25: 1. a project is completed and placed into service or
B26: 2. a project is cancelled.
B27: 3. reductions should never result in negative capital asset values at year end.

Sheet DOT_OI
A1: STATE OF CONNECTICUT
A2: OFFICE OF THE COMPTROLLER
A3: GAAP CLOSING PACKAGE
A5: DEPARTMENT OF TRANSPORTATION
A7: Operating Indicators Schedule
A10: Operating Indicator | I10: 2022
A12: Active construction projects
A14: Miles of road resurfaced
A16: Estimated number of persons using roadways
A20: Instructions:
A21: For the operating indicators listed above, enter applicable information for fiscal year 2022.
A23: Note:
A24: Operating indicators represent information about the types of services your agency provides;
A25: they should indicate the demand for or the volume of your agency's services.

Sheet IRM_Instr
A1: STATE OF CONNECTICUT
A2: OFFICE OF THE COMPTROLLER
A3: GAAP CLOSING PACKAGE
A5: INSURANCE AND RISK MANAGEMENT BOARD
A7: ADDITIONAL FINANCIAL INFORMATION
A10: The information requested below is in addition to the information requested through the GAAP
A11: closing package. This information is due on September 1st. When completed, return it to
A12: the Comptroller's Office, Accounting Services/Budget Financial Analysis Division, GAAP
A13: Reporting Unit.
A15: 1. | B15: Complete the attached schedule on other financial information.

Sheet IRM_Oth
A1: STATE OF CONNECTICUT
A2: OFFICE OF THE COMPTROLLER
A3: GAAP CLOSING PACKAGE
A5: INSURANCE AND RISK MANAGEMENT BOARD
A7: OTHER FINANCIAL INFORMATION
A8: 2023-06-30
A11: 1. | B11: During the year, were there any significant reductions in insurance coverage from
B12: coverage in the prior year?
B14: Yes | E14: No
B16: If answer is yes, give a description of the reductions.
A24: 2. | B24: For each of the past three fiscal years, did settled claims materially exceed
B25: commercial insurance coverage?
B27: Yes | E27: No
B29: If answer is yes, give a brief explanation.
A39: 3. | B39: For insurance policies outstanding on June 30, 2023, disclose the highest amount of
B40: deductible or self-insured retention assumed by the State and the type of risk insured.

Sheet JUD_Instr
A1: STATE OF CONNECTICUT
A2: OFFICE OF THE COMPTROLLER
A3: GAAP CLOSING PACKAGE
A5: JUDICIAL DEPARTMENT
A7: ADDITIONAL FINANCIAL INFORMATION
A10: The information requested below is in addition to the information requested through the GAAP
A11: Closing Package. This information is due on September 1st. When completed, return it
A12: with the GAAP Forms Control Sheet.
A14: 1. Complete the attached form on compensated absences.
A16: 2. Complete the attached schedule on operating indicators.

Sheet JUD_CA
A1: STATE OF CONNECTICUT
A2: OFFICE OF THE COMPTROLLER
A3: GAAP CLOSING PACKAGE
A5: JUDICIAL DEPARTMENT
A7: ADDITIONAL FIANANCIAL INFORMATION
A9: Compensated Absences
A10: 2023-06-30
A12: According to generally accepted accounting principles (GAAP), compensated absences represent
A13: a liability of the State for additional compensation earned by employees. This compensation is to be
A14: paid in the future in the form of vacation and sick leave benefits. Please complete columns 1-5 of
A15: attached form as follows:
A17: 1. | B17: Enter the number of the fund from which the employees are paid.
A19: 2. | B19: For all employees in the fund, enter the total number of earned vacation leave
B20: hours as of June 30th.
B22: Note: For any employee included in this column, the maximum number of earned
B23: vacation leave hours that should be reported is:
B24: a. If the employee was hired before June 30, 1977, or if the employee is a manager:
C25: 960 hours (if the employee works 8 hours a day) or
C26: 840 hours (if the employee works 7 hours a day),
B27: or
B28: b. If the employee was hired after June 30, 1977:
C29: 480 hours (if the employee works 8 hours a day) or
C30: 420 hours (if the employee works 7 hours a day).
A32: 3. | B32: For all employees in the fund who have worked for the State for less than five
B33: years as of June 30th, enter the total number of earned sick leave hours as of
B34: June 30th.
A36: 4. | B36: For all employees in the fund who have worked for the State for five or more
B37: years as of June 30th, enter the total number of earned sick leave hours as of
B38: June 30th.
B40: Note: For any employee included in columns 3 or 4, the maximum number of earned
B41: sick leave hours that should be reported is:
C43: 1920 hours (if the employee works 8 hours a day) or
C44: 1680 hours (if the employee works 7 hours a day).
B46: Employees are entitled to be paid for their earned sick leave hours only at retirement,
B47: limited to ¼ of their accumulated sick leave hours up to a maximum of 60 days.
A49: (continued)
A51: Compensated Absences | E51: Page 2
A54: 5. | B54: Enter the average hourly salary as of June 30th for all employees within your agency
B55: who earn vacation and sick leave hours.
B57: Note: The average hourly salary should be based on employees' regular pay (do not
B58: include overtime or shift differential pay). Your agency may use the payroll run for the
B59: period ending June 15, 2023 (check date June 30, 2023) to calculate the average hourly
B60: salary.

Sheet JUD_Fm
A1: Notes:
A2: a. Read the instructions before completing this form.
A3: b. Round off to whole numbers.
A4: State of Connecticut
A5: Office of the Comptroller
A6: Compensated Absences - Judicial Department
A7: For the Fiscal Year Ended June 30, 2023
A9: 1 | B9: 2 | C9: 3 | D9: 4 | E9: 5
B10: Number of | C10: Number of Earned | D10: Number of Earned
B11: Earned | C11: Sick Leave Hours | D11: Sick Leave Hours | E11: Average
A12: Fund | B12: Vacation Leave Hours | C12: Employees with Less Than | D12: Employees with "5" or More | E12: Hourly Salary
A13: # | B13: All Employees | C13: "5" Years of Service | D13: Years of Service | E13: All Employees
E31: Reminder
E32: This form is due on September 1st.
E33: When completed, return it with the
E34: GAAP Forms Control Sheet.
C40: Note: Completed forms should be e-mailed as an attachment to: | D40: OSC.ACFRReporting@ct.gov

Sheet JUD_OI
A1: STATE OF CONNECTICUT
A2: OFFICE OF THE COMPTROLLER
A3: GAAP CLOSING PACKAGE
A5: JUDICIAL DEPARTMENT
A7: Operating Indicators Schedule
A10: Operating Indicator | I10: 2022
A12: Superior court cases filed
A14: Average number of probationers supervised - adults
A16: Average number of probationers supervised - juveniles
A21: Instructions:
A22: For the operating indicators listed above, enter applicable information for fiscal year 2022.
A24: Note:
A25: Operating indicators represent information about the types of services your agency provides;
A26: they should indicate the demand for or the volume of your agency's services.

Sheet OLM_Instr
A1: STATE OF CONNECTICUT
A2: OFFICE OF THE COMPTROLLER
A3: GAAP CLOSING PACKAGE
A5: LEGISLATIVE MANAGEMENT
A7: ADDITIONAL FINANCIAL INFORMATION
A10: The information requested below is in addition to the information requested through the GAAP
A11: Closing Package. This information is due on September 1st. When completed, return it
A12: with the GAAP Forms Control Sheet.
A14: 1. | B14: Complete the attached schedule on accrued legislators' salaries.
A16: 2. | B16: Complete the attached form on compensated absences.
A18: 3. | B18: Complete the attached schedule on operating indicators.

Sheet OLM_AS
A1: STATE OF CONNECTICUT
A2: OFFICE OF THE COMPTROLLER
A3: GAAP CLOSING PACKAGE
A5: LEGISLATIVE MANAGEMENT
A7: ADDITIONAL FINANCIAL INFORMATION
A9: Accrued Legislators Salaries
A10: 2023-06-30
A12: Accrued legislators salaries are defined as salaries that were earned by some legislators during
A13: the 2020 legislative session and that are paid by the State over a twelve-month period.
B15: (1) | E15: (2) | G15: (3)
B16: Number of | E16: Accrued | G16: SID
B17: State Legislators | E17: Legislators Salaries | G17: Number
A19: $ | D19: $
A36: Instructions:
A38: 1. | B38: Enter the number of State legislators who are paid over a twelve-month period.
A40: 2. | B40: For State legislators included in column 1, enter one half of their total annual
B41: gross salaries earned during the 2023 legislative session by SID Number.

Sheet OLM_CA
A1: STATE OF CONNECTICUT
A2: OFFICE OF THE COMPTROLLER
A3: GAAP CLOSING PACKAGE
A5: LEGISLATIVE MANAGEMENT
A7: ADDITIONAL FIANANCIAL INFORMATION
A9: Compensated Absences
A10: 2023-06-30
A12: According to generally accepted accounting principles (GAAP), compensated absences represent
A13: a liability of the State for additional compensation earned by employees. This compensation is to be
A14: paid in the future in the form of vacation and sick leave benefits. Please complete columns 1-5 of
A15: attached form as follows:
A17: 1. | B17: Enter the number of the fund from which the employees are paid.
A19: 2. | B19: For all employees in the fund, enter the total number of earned vacation leave
B20: hours as of June 30th.
B22: Note: For any employee included in this column, the maximum number of earned
B23: vacation leave hours that should be reported is:
B25: a. If the employee was hired before June 30, 1977, or if the employee is a manager:
C26: 960 hours (if the employee works 8 hours a day) or
C27: 840 hours (if the employee works 7 hours a day),
B29: or
B31: b. If the employee was hired after June 30, 1977:
C32: 480 hours (if the employee works 8 hours a day) or
C33: 420 hours (if the employee works 7 hours a day).
A35: 3. | B35: For all employees in the fund who have worked for the State for less than five
B36: years as of June 30th, enter the total number of earned sick leave hours as of
B37: June 30th.
A39: 4. | B39: For all employees in the fund who have worked for the State for five or more
B40: years as of June 30th, enter the total number of earned sick leave hours as of
B41: June 30th.
B43: Note: For any employee included in columns 3 or 4, the maximum number of earned
B44: sick leave hours that should be reported is:
C46: 1920 hours (if the employee works 8 hours a day) or
C47: 1680 hours (if the employee works 7 hours a day).
B49: Employees are entitled to be paid for their earned sick leave hours only at retirement,
B50: limited to ¼ of their accumulated sick leave hours up to a maximum of 60 days.
A52: (continued)
A54: Compensated Absences | E54: Page 2
A57: 5. | B57: Enter the average hourly salary as of June 30th for all employees within your agency
B58: who earn vacation and sick leave hours.
B60: Note: The average hourly salary should be based on employees' regular pay (do not
B61: include overtime or shift differential pay). Your agency may use the payroll run for the
B62: period ending June 15, 2023 (check date June 30, 2023) to calculate the average hourly
B63: salary.

Sheet OLM_Fm
A1: Notes:
A2: a. Read the instructions before completing this form.
A3: b. Round off to whole numbers.
A4: State of Connecticut
A5: Office of the Comptroller
A6: Compensated Absences - Legislative Management
A7: For the Fiscal Year Ended June 30, 2023
A9: 1 | B9: 2 | C9: 3 | D9: 4 | E9: 5
B10: Number of | C10: Number of Earned | D10: Number of Earned
B11: Earned | C11: Sick Leave Hours | D11: Sick Leave Hours | E11: Average
A12: Fund | B12: Vacation Leave Hours | C12: Employees with Less Than | D12: Employees with "5" or More | E12: Hourly Salary
A13: # | B13: All Employees | C13: "5" Years of Service | D13: Years of Service | E13: All Employees
E31: Reminder
E32: This form is due on September 1st.
E33: When completed, return it with the
E34: GAAP Forms Control Sheet.
C40: Note: Completed forms should be e-mailed as an attachment to: | D40: OSC.ACFRReporting@ct.gov

Sheet OLM_OI
A1: STATE OF CONNECTICUT
A2: OFFICE OF THE COMPTROLLER
A3: GAAP CLOSING PACKAGE
A5: LEGISLATIVE MANAGEMENT
A7: Operating Indicators Schedule
A10: Operating Indicator | I10: 2022
A12: Number of Public and Special Acts
A14: Number of amendments drafted
A17: Instructions:
A18: For the operating indicators listed above, enter applicable information for fiscal year 2022.
A20: Note:
A21: Operating indicators represent information about the types of services your agency provides;
A22: they should indicate the demand for or the volume of your agency's services.

Sheet OPM_Instr
A1: STATE OF CONNECTICUT
A2: OFFICE OF THE COMPTROLLER
A3: GAAP CLOSING PACKAGE
A5: OFFICE OF POLICY MANAGEMENT
A7: ADDITIONAL FINANCIAL INFORMATION
A10: The information requested below is in addition to the information requested through the GAAP
A11: Closing Package. This information is due on September 1st. When completed, return it
A12: with the GAAP Forms Control Sheet.
A15: 1. Complete attached grant payables form as of June 30th.

Sheet OPMGP_Instr
F1: STATE OF CONNECTICUT
F2: OFFICE OF THE COMPTROLLER
F3: GAAP CLOSING PACKAGE
F5: ADDITIONAL FINANCIAL INFORMATION
F7: GRANT PAYABLES
F8: 2023-06-30
F10: Instructions
A12: For purposes of this form, grant payables are defined as grant (or other financial assistance) amounts
A13: owed by the State (provider) to individuals, private organizations, or other governments (recipients)
A14: as of June 30th.
A16: This form applies to grant and other financial assistance programs (except loan programs) that are
A17: fully funded by State monies.
A19: According to GAAP, grant payables should be reported when all applicable eligibility
A20: requirements, including time requirements, established by the provider have been met.
A22: Eligibility requirements comprise one or more of the following (as applicable):
A24: a. Required characteristics of recipients - The recipient has the characteristics specified by the
A25: provider.
A27: b. Time requirements - The period specified by the provider when grant resources must be spent by
A28: the recipient.
A30: c. Reimbursements - The provider stipulates that the recipient cannot qualify for resources without
A31: first incurring allowable expenditures under the provider’s program.
A33: d. Contingencies - The provider’s offer of resources is contingent upon a specified action of the
A34: recipient. For example, the recipient is required to spend its own resources for a specified purpose
A35: (matching requirement).
B37: Note: Contingencies should not be confused with purpose restrictions. Purpose restrictions
B38: specify the purpose or purposes for which the grant resources are required to be used. For
B39: example, a requirement that grant resources be used for street and road repairs is a purpose
B40: restriction, not a contingency.
A42: Do not report on this form grant amounts due to other agencies.
F45: (continued)
F46: Page 2
A48: If your agency has no grant payables to report or if the total amount of grant payables to be reported
A49: in column 4 is less than $300,000, please write “not applicable” on the form.
A51: If the total amount of grant payables to be reported in column 4 is greater than or equal to
A52: $300,000, please complete columns 1-5 of the form as follows:
A54: 1. Enter required account coding information for each grant payable amount (column 4).
A56: 2. Enter a description of the grant payable owed by the State.
A58: 3. Enter the name of the grant recipient.
A60: 4. Enter the amount of the grant payable as of June 30th.
A62: Notes:
B64: a. If you are reporting reimbursement-type grants and if all eligibility requirements
B65: established by the State have been met, enter the amount of allowable expenditures
B66: incurred by the recipient under the grant program through June 30th which had not been
B67: reimbursed by the State as of that date.
B69: b. If you are reporting other than reimbursement-type grants and if all eligibility
B70: requirements established by the State have been met, enter the full grant award, less
B71: any payments made by the State to the grant recipient through June 30th (include
B72: payments made in prior fiscal years, if reporting on multi-year grants).
A74: · If the grant program is funded by an annual appropriation of a budgeted fund
A75: (e.g., General Fund), enter the amount of the annual adjusted appropriation less
A76: any payments made by the State to the grant recipient through June 30th, and
A77: less any lapsed appropriation amount.
A79: · A multi-year grant is one whose award is required to be spent in more than one fiscal year.
A81: · Grant payables should be reported even if the recipient might not have completed as of year end
A82: routine reports required by the State (e.g., filing of a progress report or filing of a quarterly
A83: reimbursement report).
A85: 5. Enter the amount of the grant payable as of June 30th (column 4) that was paid on or before
A86: August 31, 2023 through Core-CT, if any.
A88: Note: For payments to be reported in this column, supporting invoices must have receipt
A89: dates of June or prior months.

Sheet OPM_GP
A1: Notes:
A2: a. Read the instructions before completing this form.
A3: b. Round off to whole numbers.
A4: State of Connecticut
A5: Office of the Comptroller
A6: Grants Payable
A7: For the Fiscal Year Ended June 30, 2023
A9: 1 | E9: 2 | F9: 3 | G9: 4 | H9: 5
H11: Grants Payable
A12: Fund | B12: Department | C12: SID | D12: Expenditure | E12: Grant | F12: Grant | G12: Grants | H12: Paid Through
A13: # | B13: # | C13: # | D13: Account # | E13: Description | F13: Recipient | G13: Payable | H13: 2023-08-31
F28: Total
H30: Reminder
H31: This form is due on September 1st.
H32: When completed, return it with the
H33: GAAP Forms Control Sheet.
E39: Note: Completed forms should be e-mailed as attachments to: | F39: OSC.ACFRReporting@ct.gov

Sheet PCA_Instr
A1: STATE OF CONNECTICUT
A2: OFFICE OF THE COMPTROLLER
A3: GAAP CLOSING PACKAGE
A5: PROBATE COURT ADMINISTRATION
A7: ADDITIONAL FINANCIAL INFORMATION
A10: The information requested below is in addition to the information requested through the GAAP
A11: Closing Package. This information is due on September 1st. When completed, return it
A12: with the GAAP Forms Control Sheet.
A15: 1. | B15: Complete the attached form on compensated absences.

Sheet PCA_CA
A1: STATE OF CONNECTICUT
A2: OFFICE OF THE COMPTROLLER
A3: GAAP CLOSING PACKAGE
A5: PROBATE COURT ADMINISTARTION
A6: ADDITIONAL FIANANCIAL INFORMATION
A8: Compensated Absences
A9: 2023-06-30
A11: According to generally accepted accounting principles (GAAP), compensated absences represent
A12: a liability of the State for additional compensation earned by employees. This compensation is to be
A13: paid in the future in the form of vacation and sick leave benefits. Please complete columns 1-5 of
A14: attached form as follows:
A16: 1. | B16: Enter the number of the fund from which the employees are paid.
A18: 2. | B18: For all employees in the fund, enter the total number of earned vacation leave
B19: hours as of June 30th.
B21: Note: For any employee included in this column, the maximum number of earned
B22: vacation leave hours that should be reported is:
B24: a. If the employee was hired before June 30, 1977, or if the employee is a manager:
C25: 960 hours (if the employee works 8 hours a day) or
C26: 840 hours (if the employee works 7 hours a day),
B28: or
B30: b. If the employee was hired after June 30, 1977:
C31: 480 hours (if the employee works 8 hours a day) or
C32: 420 hours (if the employee works 7 hours a day).
A34: 3. | B34: For all employees in the fund who have worked for the State for less than five
B35: years as of June 30th, enter the total number of earned sick leave hours as of
B36: June 30th.
A38: 4. | B38: For all employees in the fund who have worked for the State for five or more
B39: years as of June 30th, enter the total number of earned sick leave hours as of
B40: June 30th.
B42: Note: For any employee included in columns 3 or 4, the maximum number of earned
B43: sick leave hours that should be reported is:
C45: 1920 hours (if the employee works 8 hours a day) or
C46: 1680 hours (if the employee works 7 hours a day).
B48: Employees are entitled to be paid for their earned sick leave hours only at retirement,
B49: limited to ¼ of their accumulated sick leave hours up to a maximum of 60 days.
A52: (continued)
A54: Compensated Absences | E54: Page 2
A57: 5. | B57: Enter the average hourly salary as of June 30th for all employees within your agency
B58: who earn vacation and sick leave hours.
B60: Note: The average hourly salary should be based on employees' regular pay (do not
B61: include overtime or shift differential pay). Your agency may use the payroll run for the
B62: period ending June 15, 2023 (check date June 30, 2023) to calculate the average hourly
B63: salary.

Sheet PCA_Fm
A1: Notes:
A2: a. Read the instructions before completing this form.
A3: b. Round off to whole numbers.
A4: State of Connecticut
A5: Office of the Comptroller
A6: Compensated Absences - Probate Court Administration
A7: For the Fiscal Year Ended June 30, 2023
A9: 1 | B9: 2 | C9: 3 | D9: 4 | E9: 5
B10: Number of | C10: Number of Earned | D10: Number of Earned
B11: Earned | C11: Sick Leave Hours | D11: Sick Leave Hours | E11: Average
A12: Fund | B12: Vacation Leave Hours | C12: Employees with Less Than | D12: Employees with "5" or More | E12: Hourly Salary
A13: # | B13: All Employees | C13: "5" Years of Service | D13: Years of Service | E13: All Employees
E31: Reminder
E32: This form is due on September 1st.
E33: When completed, return it with the
E34: GAAP Forms Control Sheet.
C40: Note: Completed forms should be e-mailed as an attachment to: | D40: OSC.ACFRReporting@ct.gov

Sheet TRB_Instr
A1: STATE OF CONNECTICUT
A2: OFFICE OF THE COMPTROLLER
A3: GAAP CLOSING PACKAGE
A5: TEACHERS RETIREMENT BOARD
A7: ADDITIONAL FINANCIAL INFORMATION
A10: The information requested below is in addition to the information requested through the GAAP
A11: closing package. This information is due on September 1st. When completed, return it
A12: with the GAAP Forms Control Sheet.
A15: 1. | B15: Complete the attached schedule on cash receipts and disbursements and other assets
B16: and liabilities of the Retirement Benefits Fund.
A18: 2. | B18: Complete the attached schedule on cash receipts and disbursements and other assets
B19: and liabilities of the Health Insurance Premium Account.
A21: 3. | B21: Complete the attached schedule for the Deferred Retirement Option Plan "DROP".
A23: 4. | B23: Submit a copy of the Administrative Report and of the balance sheet for the Health
B24: Insurance fund as of June 30th.

Sheet TRB_Ret
A1: STATE OF CONNECTICUT
A2: OFFICE OF THE COMPTROLLER
A3: GAAP CLOSING PACKAGE
A5: TEACHERS RETIREMENT BOARD
A7: RETIREMENT BENEFITS FUND
A8: FISCAL YEAR ENDED JUNE 30, 2023
A10: Cash Receipts:
B11: Mandatory Active Teacher Contributions (Note 1) | I11: $
B13: Personal (voluntary) Pension Contributions (Note 2) | I13: $
B15: State Contributions to Teachers Pensions | I15: $
B17: Local Government payments for their participation in
B18: the Retirement Incentive Plan (RIP) | I18: $
B20: Investment income (exclude STIF income) | I20: $
B22: STIF income | I22: $
B24: Other (list): | I24: $
A26: Cash Disbursements:
B27: Pension Benefit payments and refunds (Note 2) | I27: $
B29: Other (list): | I29: $
A31: Assets/Liabilities:
B32: Mandatory Active Teacher Contributions Receivable as of 6-30 | I32: $
B34: Retirement Incentive Plan Receivable (Note 3) | I34: $
B36: Contribution refunds payable as of 6-30 (Note 4) | I36: $
B38: Due to Health Insurance Account:
C39: Teacher contributions already collected as of June 30th but
C40: not yet transferred | I40: $
C42: Health account portion of teacher contributions receivable
C43: as of June 30th | I43: $
A44: Notes:
A45: 1 | B45: EXCLUDE contributions transferred to health insurance account and exclude local government Retirement
B46: Incentive Plan (RIP) payments
A47: 2 | B47: Exclude Health Insurance Premium Fund Payments and Fund Balance
A48: 3 | B48: Receivables for amounts due from local governments as of June 30th for their participation in the
B49: RIP. Ignore when the receivable will be collected
A50: 4 | B50: Representing contribution amounts due to inactive teachers (or their beneficiaries) for claims
B51: filed on or before June 30th, but paid after that date (exclude claims for abandoned
B52: contributions)

Sheet TRB_HEA
A1: STATE OF CONNECTICUT
A2: OFFICE OF THE COMPTROLLER
A3: GAAP CLOSING PACKAGE
A5: TEACHERS RETIREMENT BOARD
A7: HEALTH INSURANCE PREMIUM ACCOUNT
A8: FISCAL YEAR ENDED JUNE 30, 2023
A11: Cash receipts:
B12: Mandatory Active Teachers contributions (Note 1) | I12: $
B14: Health Portion of Personal Contributions | I14: $
B16: State contributions | I16: $
B18: Retiree & Surviving Spouse Contributions (payroll deductions) | I18: $
B20: STIF Income | I20: $
B22: Other (list): Credited Interest | I22: $
A24: Cash disbursements:
B25: Health Benefit payments | I25: $
B27: Administrative Fees | I27: $
B29: State & Local Health Subsidies | I29: $
B31: Other: (list) consulting | I31: $
A33: Assets/ Liabilities:
B34: Cash in transit (Note 2) | I34: $
B36: Unpaid health claims (Note 3) | I36: $
A37: Notes:
A38: 1 | B38: Representing contributions transferred from the retirement benefit fund.
A40: 2 | B40: Representing retiree premium contributions for June deposited in July.
A42: 3 | B42: Representing health claims incurred in fiscal year 2023 but paid in fiscal year 2024.

Sheet TRB_DefRet
A1: STATE OF CONNECTICUT
A2: OFFICE OF THE COMPTROLLER
A3: GAAP CLOSING PACKAGE
A5: TEACHERS RETIREMENT BOARD
A7: DEFERRED RETIREMENT OPTION PLAN
A8: FISCAL YEAR ENDED 6-30-2023
A11: According to GASB Statement No. 67 the State must report any Deferred Retirement Option
A12: Plan (DROP). The DROP plan allows the employee to retire from the pension plan, but
A13: remain fully employed. During the years they are a DROP participant, the monthly pension amount
A14: is deferred into a DROP account in the participant's name.
A16: Per Section 10-183v of the State Statue, a teacher receiving retirement benefits from the system may
A17: be reemployed for up to one full school year by a local board of education, the State Board of Education
A18: or by a constituent unit of the state system of higher education. This qualifies as a DROP plan.
A22: 1. Please provide the balance of the amount held for the deferred retirement option program $____________

Sheet TEC_Instr
A1: STATE OF CONNECTICUT
A2: OFFICE OF THE COMPTROLLER
A3: GAAP CLOSING PACKAGE
A5: DEPARTMENT OF EDUCATION
A7: ADDITIONAL FINANCIAL INFORMATION
A10: The information requested below is in addition to the information requested through
A11: the GAAP Closing Package. This information is due on September 1st. When
A12: completed return it with the GAAP Forms Control Sheet.
A15: 1. | B15: Complete the attached schedule on accrued teacher salaries.

Sheet TEC_sal
A1: STATE OF CONNECTICUT
A2: OFFICE OF COMPTROLLER
A3: GAAP CLOSING PACKAGE
A5: DEPARTMENT OF EDUCATION
A7: Accrued Teacher Salaries
A8: 2023-06-30
A10: The Department of Education employs teachers who work only during the school year (September
A11: June) and who are paid over a 12-month period. Accordingly, salaries paid to these teachers in
A12: July and August for work performed during the prior school year represent a liability of the State
A13: as of June 30th.
A15: Instructions:
A16: 1. Enter total amount of teacher gross salaries for the following payroll period ending dates.
A17: 1) | B17: June 29 (paid on July 14)
A19: 2) | B19: July 13 (paid on July 28)
A21: 3) | B21: July 27 (paid on August 11)
A23: 4) | B23: August 10 (paid on August 25)
A25: 2. For each payroll listed in "1", enter total amount of teacher gross salaries by fund
A26: number.
A28: 3. For General fund (11000) salaries, enter total salary amount by SID Number.
N48: 6
